Workbook

Sheet Working Capital
A2: Assumptions
B3: Operating Assumptions
C4: Explicit Period Growth | E4: 0.3
C5: Terminal Growth | E5: 0.02
G6: Working Capital Change = Working Capital/EBITDA x EBITDAt x growth/(1+growth)
C7: Revenues | E7: 100
C8: A/R to Revenues | E8: =3/12 -> 0.25 | H8: Theoretically Correct Valuation | N8: =E31 -> 1721.25796
H9: Computed Valuation without Stable Period Adjustment | N9: =E35 -> 1363.514773
C10: Margin | E10: 0.2 | H10: Computed Valuation with Stable Period Adjustment | N10: =E43 -> 1721.25796
C12: Explicit Period | E12: 10 | H12: Error | N12: =N9-N8 -> -357.7431871
H13: Perecent Error | N13: =N12/N8 -> -0.207838218
C14: WACC | E14: 0.1
A16: Timing
B17: Period | F17: 0 | G17: =F17+1 -> 1 | H17: =G17+1 -> 2 | I17: 3 | J17: 4 | K17: 5 | L17: 6 | M17: 7 | N17: 8 | O17: 9 | P17: 10 | Q17: 11 | R17: 12 | S17: 13 | T17: 14 | U17: 15 | V17: 16 | W17: 17 | X17: 18 | Y17: 19 | Z17: 20 | AA17: 21 | AB17: 22 | AC17: 23 | AD17: 24 | AE17: 25 | AF17: 26 | AG17: 27 | AH17: 28 | AI17: 29 | AJ17: 30 | AK17: 31 | AL17: 32 | AM17: 33 | AN17: 34 | AO17: 35 | AP17: 36 | AQ17: 37 | AR17: 38 | AS17: 39 | AT17: 40 | AU17: 41 | AV17: 42 | AW17: 43 | AX17: 44 | AY17: 45 | AZ17: 46 | BA17: 47 | BB17: 48 | BC17: 49 | BD17: 50 | BE17: 51 | BF17: 52 | BG17: 53 | BH17: 54 | BI17: 55 | BJ17: 56 | BK17: 57 | BL17: 58 | BM17: 59 | BN17: 60 | BO17: 61 | BP17: 62 | BQ17: 63 | BR17: 64 | BS17: 65 | BT17: =BS17+1 -> 66 | BU17: 67 | BV17: 68 | BW17: 69 | BX17: 70 | BY17: 71 | BZ17: 72 | CA17: 73 | CB17: 74 | CC17: 75 | CD17: 76 | CE17: 77 | CF17: 78 | CG17: 79 | CH17: 80 | CI17: 81 | CJ17: 82 | CK17: 83 | CL17: 84 | CM17: 85 | CN17: 86 | CO17: 87 | CP17: 88 | CQ17: 89 | CR17: 90 | CS17: 91 | CT17: 92 | CU17: 93 | CV17: 94 | CW17: 95 | CX17: 96 | CY17: 97 | CZ17: 98 | DA17: 99 | DB17: 100 | DC17: 101 | DD17: 102 | DE17: 103 | DF17: 104 | DG17: 105 | DH17: 106 | DI17: 107 | DJ17: 108 | DK17: 109 | DL17: 110 | DM17: 111 | DN17: 112 | DO17: 113 | DP17: 114 | DQ17: 115 | DR17: 116 | DS17: 117 | DT17: 118 | DU17: 119 | DV17: 120 | DW17: 121 | DX17: 122 | DY17: 123 | DZ17: 124 | EA17: 125 | EB17: 126 | EC17: 127 | ED17: 128 | EE17: 129 | EF17: =EE17+1 -> 130 | EG17: 131 | EH17: 132 | EI17: 133 | EJ17: 134 | EK17: 135 | EL17: 136 | EM17: 137 | EN17: 138 | EO17: 139 | EP17: 140 | EQ17: 141 | ER17: 142 | ES17: 143 | ET17: 144 | EU17: 145 | EV17: 146 | EW17: 147 | EX17: 148 | EY17: 149 | EZ17: 150 | FA17: 151 | FB17: 152 | FC17: 153 | FD17: 154 | FE17: 155 | FF17: 156 | FG17: 157 | FH17: 158 | FI17: 159 | FJ17: 160 | FK17: 161 | FL17: 162 | FM17: 163 | FN17: 164 | FO17: 165 | FP17: 166 | FQ17: 167 | FR17: 168 | FS17: 169 | FT17: 170 | FU17: 171 | FV17: 172 | FW17: 173 | FX17: 174 | FY17: 175 | FZ17: 176 | GA17: 177 | GB17: 178 | GC17: 179 | GD17: 180 | GE17: 181 | GF17: 182 | GG17: 183 | GH17: 184 | GI17: 185 | GJ17: 186 | GK17: 187 | GL17: 188 | GM17: 189 | GN17: 190 | GO17: 191 | GP17: 192 | GQ17: 193 | GR17: =GQ17+1 -> 194 | GS17: 195 | GT17: 196 | GU17: 197 | GV17: 198 | GW17: 199 | GX17: 200 | GY17: 201 | GZ17: 202 | HA17: 203 | HB17: 204 | HC17: 205 | HD17: 206 | HE17: 207 | HF17: 208 | HG17: 209 | HH17: 210 | HI17: 211 | HJ17: 212 | HK17: 213 | HL17: 214 | HM17: 215 | HN17: 216 | HO17: 217 | HP17: 218 | HQ17: 219 | HR17: 220 | HS17: 221 | HT17: 222 | HU17: 223 | HV17: 224 | HW17: 225 | HX17: 226 | HY17: 227 | HZ17: 228 | IA17: 229 | IB17: 230 | IC17: 231 | ID17: 232 | IE17: 233 | IF17: 234 | IG17: 235 | IH17: 236 | II17: 237 | IJ17: 238 | IK17: 239 | IL17: 240 | IM17: 241 | IN17: 242 | IO17: 243 | IP17: 244 | IQ17: 245 | IR17: 246 | IS17: 247 | IT17: 248 | IU17: 249 | IV17: 250 | IW17: 251 | IX17: 252 | IY17: 253 | IZ17: 254 | JA17: 255 | JB17: 256 | JC17: 257 | JD17: =JC17+1 -> 258 | JE17: 259 | JF17: 260 | JG17: 261 | JH17: 262 | JI17: 263 | JJ17: 264 | JK17: 265 | JL17: 266 | JM17: 267 | JN17: 268 | JO17: 269 | JP17: 270 | JQ17: 271 | JR17: 272 | JS17: 273 | JT17: 274 | JU17: 275 | JV17: 276 | JW17: 277 | JX17: 278 | JY17: 279 | JZ17: 280 | KA17: 281 | KB17: 282 | KC17: 283 | KD17: 284 | KE17: 285 | KF17: 286 | KG17: 287 | KH17: 288 | KI17: 289 | KJ17: 290 | KK17: 291 | KL17: 292 | KM17: 293 | KN17: 294 | KO17: 295 | KP17: 296 | KQ17: 297 | KR17: 298 | KS17: 299 | KT17: 300
B18: Explicit Period | G18: =G17<=$E$12 -> TRUE | H18: TRUE | I18: TRUE | J18: TRUE | K18: TRUE | L18: TRUE | M18: TRUE | N18: TRUE | O18: TRUE | P18: TRUE | Q18: FALSE | R18: FALSE | S18: FALSE | T18: FALSE | U18: FALSE | V18: FALSE | W18: FALSE | X18: FALSE | Y18: FALSE | Z18: FALSE | AA18: FALSE | AB18: FALSE | AC18: FALSE | AD18: FALSE | AE18: FALSE | AF18: FALSE | AG18: FALSE | AH18: FALSE | AI18: FALSE | AJ18: FALSE | AK18: FALSE | AL18: FALSE | AM18: FALSE | AN18: FALSE | AO18: FALSE | AP18: FALSE | AQ18: FALSE | AR18: FALSE | AS18: FALSE | AT18: FALSE | AU18: FALSE | AV18: FALSE | AW18: FALSE | AX18: FALSE | AY18: FALSE | AZ18: FALSE | BA18: FALSE | BB18: FALSE | BC18: FALSE | BD18: FALSE | BE18: FALSE | BF18: FALSE | BG18: FALSE | BH18: FALSE | BI18: FALSE | BJ18: FALSE | BK18: FALSE | BL18: FALSE | BM18: FALSE | BN18: FALSE | BO18: FALSE | BP18: FALSE | BQ18: FALSE | BR18: FALSE | BS18: =BS17<=$E$12 -> FALSE | BT18: FALSE | BU18: FALSE | BV18: FALSE | BW18: FALSE | BX18: FALSE | BY18: FALSE | BZ18: FALSE | CA18: FALSE | CB18: FALSE | CC18: FALSE | CD18: FALSE | CE18: FALSE | CF18: FALSE | CG18: FALSE | CH18: FALSE | CI18: FALSE | CJ18: FALSE | CK18: FALSE | CL18: FALSE | CM18: FALSE | CN18: FALSE | CO18: FALSE | CP18: FALSE | CQ18: FALSE | CR18: FALSE | CS18: FALSE | CT18: FALSE | CU18: FALSE | CV18: FALSE | CW18: FALSE | CX18: FALSE | CY18: FALSE | CZ18: FALSE | DA18: FALSE | DB18: FALSE | DC18: FALSE | DD18: FALSE | DE18: FALSE | DF18: FALSE | DG18: FALSE | DH18: FALSE | DI18: FALSE | DJ18: FALSE | DK18: FALSE | DL18: FALSE | DM18: FALSE | DN18: FALSE | DO18: FALSE | DP18: FALSE | DQ18: FALSE | DR18: FALSE | DS18: FALSE | DT18: FALSE | DU18: FALSE | DV18: FALSE | DW18: FALSE | DX18: FALSE | DY18: FALSE | DZ18: FALSE | EA18: FALSE | EB18: FALSE | EC18: FALSE | ED18: FALSE | EE18: =EE17<=$E$12 -> FALSE | EF18: FALSE | EG18: FALSE | EH18: FALSE | EI18: FALSE | EJ18: FALSE | EK18: FALSE | EL18: FALSE | EM18: FALSE | EN18: FALSE | EO18: FALSE | EP18: FALSE | EQ18: FALSE | ER18: FALSE | ES18: FALSE | ET18: FALSE | EU18: FALSE | EV18: FALSE | EW18: FALSE | EX18: FALSE | EY18: FALSE | EZ18: FALSE | FA18: FALSE | FB18: FALSE | FC18: FALSE | FD18: FALSE | FE18: FALSE | FF18: FALSE | FG18: FALSE | FH18: FALSE | FI18: FALSE | FJ18: FALSE | FK18: FALSE | FL18: FALSE | FM18: FALSE | FN18: FALSE | FO18: FALSE | FP18: FALSE | FQ18: FALSE | FR18: FALSE | FS18: FALSE | FT18: FALSE | FU18: FALSE | FV18: FALSE | FW18: FALSE | FX18: FALSE | FY18: FALSE | FZ18: FALSE | GA18: FALSE | GB18: FALSE | GC18: FALSE | GD18: FALSE | GE18: FALSE | GF18: FALSE | GG18: FALSE | GH18: FALSE | GI18: FALSE | GJ18: FALSE | GK18: FALSE | GL18: FALSE | GM18: FALSE | GN18: FALSE | GO18: FALSE | GP18: FALSE | GQ18: =GQ17<=$E$12 -> FALSE | GR18: FALSE | GS18: FALSE | GT18: FALSE | GU18: FALSE | GV18: FALSE | GW18: FALSE | GX18: FALSE | GY18: FALSE | GZ18: FALSE | HA18: FALSE | HB18: FALSE | HC18: FALSE | HD18: FALSE | HE18: FALSE | HF18: FALSE | HG18: FALSE | HH18: FALSE | HI18: FALSE | HJ18: FALSE | HK18: FALSE | HL18: FALSE | HM18: FALSE | HN18: FALSE | HO18: FALSE | HP18: FALSE | HQ18: FALSE | HR18: FALSE | HS18: FALSE | HT18: FALSE | HU18: FALSE | HV18: FALSE | HW18: FALSE | HX18: FALSE | HY18: FALSE | HZ18: FALSE | IA18: FALSE | IB18: FALSE | IC18: FALSE | ID18: FALSE | IE18: FALSE | IF18: FALSE | IG18: FALSE | IH18: FALSE | II18: FALSE | IJ18: FALSE | IK18: FALSE | IL18: FALSE | IM18: FALSE | IN18: FALSE | IO18: FALSE | IP18: FALSE | IQ18: FALSE | IR18: FALSE | IS18: FALSE | IT18: FALSE | IU18: FALSE | IV18: FALSE | IW18: FALSE | IX18: FALSE | IY18: FALSE | IZ18: FALSE | JA18: FALSE | JB18: FALSE | JC18: =JC17<=$E$12 -> FALSE | JD18: FALSE | JE18: FALSE | JF18: FALSE | JG18: FALSE | JH18: FALSE | JI18: FALSE | JJ18: FALSE | JK18: FALSE | JL18: FALSE | JM18: FALSE | JN18: FALSE | JO18: FALSE | JP18: FALSE | JQ18: FALSE | JR18: FALSE | JS18: FALSE | JT18: FALSE | JU18: FALSE | JV18: FALSE | JW18: FALSE | JX18: FALSE | JY18: FALSE | JZ18: FALSE | KA18: FALSE | KB18: FALSE | KC18: FALSE | KD18: FALSE | KE18: FALSE | KF18: FALSE | KG18: FALSE | KH18: FALSE | KI18: FALSE | KJ18: FALSE | KK18: FALSE | KL18: FALSE | KM18: FALSE | KN18: FALSE | KO18: FALSE | KP18: FALSE | KQ18: FALSE | KR18: FALSE | KS18: FALSE | KT18: FALSE
B19: Terminal Period | G19: =G17=$E$12 -> FALSE | H19: FALSE | I19: FALSE | J19: FALSE | K19: FALSE | L19: FALSE | M19: FALSE | N19: FALSE | O19: FALSE | P19: TRUE | Q19: FALSE | R19: FALSE | S19: FALSE | T19: FALSE | U19: FALSE | V19: FALSE | W19: FALSE | X19: FALSE | Y19: FALSE | Z19: FALSE | AA19: FALSE | AB19: FALSE | AC19: FALSE | AD19: FALSE | AE19: FALSE | AF19: FALSE | AG19: FALSE | AH19: FALSE | AI19: FALSE | AJ19: FALSE | AK19: FALSE | AL19: FALSE | AM19: FALSE | AN19: FALSE | AO19: FALSE | AP19: FALSE | AQ19: FALSE | AR19: FALSE | AS19: FALSE | AT19: FALSE | AU19: FALSE | AV19: FALSE | AW19: FALSE | AX19: FALSE | AY19: FALSE | AZ19: FALSE | BA19: FALSE | BB19: FALSE | BC19: FALSE | BD19: FALSE | BE19: FALSE | BF19: FALSE | BG19: FALSE | BH19: FALSE | BI19: FALSE | BJ19: FALSE | BK19: FALSE | BL19: FALSE | BM19: FALSE | BN19: FALSE | BO19: FALSE | BP19: FALSE | BQ19: FALSE | BR19: FALSE | BS19: =BS17=$E$12 -> FALSE | BT19: FALSE | BU19: FALSE | BV19: FALSE | BW19: FALSE | BX19: FALSE | BY19: FALSE | BZ19: FALSE | CA19: FALSE | CB19: FALSE | CC19: FALSE | CD19: FALSE | CE19: FALSE | CF19: FALSE | CG19: FALSE | CH19: FALSE | CI19: FALSE | CJ19: FALSE | CK19: FALSE | CL19: FALSE | CM19: FALSE | CN19: FALSE | CO19: FALSE | CP19: FALSE | CQ19: FALSE | CR19: FALSE | CS19: FALSE | CT19: FALSE | CU19: FALSE | CV19: FALSE | CW19: FALSE | CX19: FALSE | CY19: FALSE | CZ19: FALSE | DA19: FALSE | DB19: FALSE | DC19: FALSE | DD19: FALSE | DE19: FALSE | DF19: FALSE | DG19: FALSE | DH19: FALSE | DI19: FALSE | DJ19: FALSE | DK19: FALSE | DL19: FALSE | DM19: FALSE | DN19: FALSE | DO19: FALSE | DP19: FALSE | DQ19: FALSE | DR19: FALSE | DS19: FALSE | DT19: FALSE | DU19: FALSE | DV19: FALSE | DW19: FALSE | DX19: FALSE | DY19: FALSE | DZ19: FALSE | EA19: FALSE | EB19: FALSE | EC19: FALSE | ED19: FALSE | EE19: =EE17=$E$12 -> FALSE | EF19: FALSE | EG19: FALSE | EH19: FALSE | EI19: FALSE | EJ19: FALSE | EK19: FALSE | EL19: FALSE | EM19: FALSE | EN19: FALSE | EO19: FALSE | EP19: FALSE | EQ19: FALSE | ER19: FALSE | ES19: FALSE | ET19: FALSE | EU19: FALSE | EV19: FALSE | EW19: FALSE | EX19: FALSE | EY19: FALSE | EZ19: FALSE | FA19: FALSE | FB19: FALSE | FC19: FALSE | FD19: FALSE | FE19: FALSE | FF19: FALSE | FG19: FALSE | FH19: FALSE | FI19: FALSE | FJ19: FALSE | FK19: FALSE | FL19: FALSE | FM19: FALSE | FN19: FALSE | FO19: FALSE | FP19: FALSE | FQ19: FALSE | FR19: FALSE | FS19: FALSE | FT19: FALSE | FU19: FALSE | FV19: FALSE | FW19: FALSE | FX19: FALSE | FY19: FALSE | FZ19: FALSE | GA19: FALSE | GB19: FALSE | GC19: FALSE | GD19: FALSE | GE19: FALSE | GF19: FALSE | GG19: FALSE | GH19: FALSE | GI19: FALSE | GJ19: FALSE | GK19: FALSE | GL19: FALSE | GM19: FALSE | GN19: FALSE | GO19: FALSE | GP19: FALSE | GQ19: =GQ17=$E$12 -> FALSE | GR19: FALSE | GS19: FALSE | GT19: FALSE | GU19: FALSE | GV19: FALSE | GW19: FALSE | GX19: FALSE | GY19: FALSE | GZ19: FALSE | HA19: FALSE | HB19: FALSE | HC19: FALSE | HD19: FALSE | HE19: FALSE | HF19: FALSE | HG19: FALSE | HH19: FALSE | HI19: FALSE | HJ19: FALSE | HK19: FALSE | HL19: FALSE | HM19: FALSE | HN19: FALSE | HO19: FALSE | HP19: FALSE | HQ19: FALSE | HR19: FALSE | HS19: FALSE | HT19: FALSE | HU19: FALSE | HV19: FALSE | HW19: FALSE | HX19: FALSE | HY19: FALSE | HZ19: FALSE | IA19: FALSE | IB19: FALSE | IC19: FALSE | ID19: FALSE | IE19: FALSE | IF19: FALSE | IG19: FALSE | IH19: FALSE | II19: FALSE | IJ19: FALSE | IK19: FALSE | IL19: FALSE | IM19: FALSE | IN19: FALSE | IO19: FALSE | IP19: FALSE | IQ19: FALSE | IR19: FALSE | IS19: FALSE | IT19: FALSE | IU19: FALSE | IV19: FALSE | IW19: FALSE | IX19: FALSE | IY19: FALSE | IZ19: FALSE | JA19: FALSE | JB19: FALSE | JC19: =JC17=$E$12 -> FALSE | JD19: FALSE | JE19: FALSE | JF19: FALSE | JG19: FALSE | JH19: FALSE | JI19: FALSE | JJ19: FALSE | JK19: FALSE | JL19: FALSE | JM19: FALSE | JN19: FALSE | JO19: FALSE | JP19: FALSE | JQ19: FALSE | JR19: FALSE | JS19: FALSE | JT19: FALSE | JU19: FALSE | JV19: FALSE | JW19: FALSE | JX19: FALSE | JY19: FALSE | JZ19: FALSE | KA19: FALSE | KB19: FALSE | KC19: FALSE | KD19: FALSE | KE19: FALSE | KF19: FALSE | KG19: FALSE | KH19: FALSE | KI19: FALSE | KJ19: FALSE | KK19: FALSE | KL19: FALSE | KM19: FALSE | KN19: FALSE | KO19: FALSE | KP19: FALSE | KQ19: FALSE | KR19: FALSE | KS19: FALSE | KT19: FALSE
B20: Short-term Growth Period | G20: =G17<=$E$12 -> TRUE | H20: TRUE | I20: TRUE | J20: TRUE | K20: TRUE | L20: TRUE | M20: TRUE | N20: TRUE | O20: TRUE | P20: TRUE | Q20: FALSE | R20: FALSE | S20: FALSE | T20: FALSE | U20: FALSE | V20: FALSE | W20: FALSE | X20: FALSE | Y20: FALSE | Z20: FALSE | AA20: FALSE | AB20: FALSE | AC20: FALSE | AD20: FALSE | AE20: FALSE | AF20: FALSE | AG20: FALSE | AH20: FALSE | AI20: FALSE | AJ20: FALSE | AK20: FALSE | AL20: FALSE | AM20: FALSE | AN20: FALSE | AO20: FALSE | AP20: FALSE | AQ20: FALSE | AR20: FALSE | AS20: FALSE | AT20: FALSE | AU20: FALSE | AV20: FALSE | AW20: FALSE | AX20: FALSE | AY20: FALSE | AZ20: FALSE | BA20: FALSE | BB20: FALSE | BC20: FALSE | BD20: FALSE | BE20: FALSE | BF20: FALSE | BG20: FALSE | BH20: FALSE | BI20: FALSE | BJ20: FALSE | BK20: FALSE | BL20: FALSE | BM20: FALSE | BN20: FALSE | BO20: FALSE | BP20: FALSE | BQ20: FALSE | BR20: FALSE | BS20: =BS17<=$E$12 -> FALSE | BT20: FALSE | BU20: FALSE | BV20: FALSE | BW20: FALSE | BX20: FALSE | BY20: FALSE | BZ20: FALSE | CA20: FALSE | CB20: FALSE | CC20: FALSE | CD20: FALSE | CE20: FALSE | CF20: FALSE | CG20: FALSE | CH20: FALSE | CI20: FALSE | CJ20: FALSE | CK20: FALSE | CL20: FALSE | CM20: FALSE | CN20: FALSE | CO20: FALSE | CP20: FALSE | CQ20: FALSE | CR20: FALSE | CS20: FALSE | CT20: FALSE | CU20: FALSE | CV20: FALSE | CW20: FALSE | CX20: FALSE | CY20: FALSE | CZ20: FALSE | DA20: FALSE | DB20: FALSE | DC20: FALSE | DD20: FALSE | DE20: FALSE | DF20: FALSE | DG20: FALSE | DH20: FALSE | DI20: FALSE | DJ20: FALSE | DK20: FALSE | DL20: FALSE | DM20: FALSE | DN20: FALSE | DO20: FALSE | DP20: FALSE | DQ20: FALSE | DR20: FALSE | DS20: FALSE | DT20: FALSE | DU20: FALSE | DV20: FALSE | DW20: FALSE | DX20: FALSE | DY20: FALSE | DZ20: FALSE | EA20: FALSE | EB20: FALSE | EC20: FALSE | ED20: FALSE | EE20: =EE17<=$E$12 -> FALSE | EF20: FALSE | EG20: FALSE | EH20: FALSE | EI20: FALSE | EJ20: FALSE | EK20: FALSE | EL20: FALSE | EM20: FALSE | EN20: FALSE | EO20: FALSE | EP20: FALSE | EQ20: FALSE | ER20: FALSE | ES20: FALSE | ET20: FALSE | EU20: FALSE | EV20: FALSE | EW20: FALSE | EX20: FALSE | EY20: FALSE | EZ20: FALSE | FA20: FALSE | FB20: FALSE | FC20: FALSE | FD20: FALSE | FE20: FALSE | FF20: FALSE | FG20: FALSE | FH20: FALSE | FI20: FALSE | FJ20: FALSE | FK20: FALSE | FL20: FALSE | FM20: FALSE | FN20: FALSE | FO20: FALSE | FP20: FALSE | FQ20: FALSE | FR20: FALSE | FS20: FALSE | FT20: FALSE | FU20: FALSE | FV20: FALSE | FW20: FALSE | FX20: FALSE | FY20: FALSE | FZ20: FALSE | GA20: FALSE | GB20: FALSE | GC20: FALSE | GD20: FALSE | GE20: FALSE | GF20: FALSE | GG20: FALSE | GH20: FALSE | GI20: FALSE | GJ20: FALSE | GK20: FALSE | GL20: FALSE | GM20: FALSE | GN20: FALSE | GO20: FALSE | GP20: FALSE | GQ20: =GQ17<=$E$12 -> FALSE | GR20: FALSE | GS20: FALSE | GT20: FALSE | GU20: FALSE | GV20: FALSE | GW20: FALSE | GX20: FALSE | GY20: FALSE | GZ20: FALSE | HA20: FALSE | HB20: FALSE | HC20: FALSE | HD20: FALSE | HE20: FALSE | HF20: FALSE | HG20: FALSE | HH20: FALSE | HI20: FALSE | HJ20: FALSE | HK20: FALSE | HL20: FALSE | HM20: FALSE | HN20: FALSE | HO20: FALSE | HP20: FALSE | HQ20: FALSE | HR20: FALSE | HS20: FALSE | HT20: FALSE | HU20: FALSE | HV20: FALSE | HW20: FALSE | HX20: FALSE | HY20: FALSE | HZ20: FALSE | IA20: FALSE | IB20: FALSE | IC20: FALSE | ID20: FALSE | IE20: FALSE | IF20: FALSE | IG20: FALSE | IH20: FALSE | II20: FALSE | IJ20: FALSE | IK20: FALSE | IL20: FALSE | IM20: FALSE | IN20: FALSE | IO20: FALSE | IP20: FALSE | IQ20: FALSE | IR20: FALSE | IS20: FALSE | IT20: FALSE | IU20: FALSE | IV20: FALSE | IW20: FALSE | IX20: FALSE | IY20: FALSE | IZ20: FALSE | JA20: FALSE | JB20: FALSE | JC20: =JC17<=$E$12 -> FALSE | JD20: FALSE | JE20: FALSE | JF20: FALSE | JG20: FALSE | JH20: FALSE | JI20: FALSE | JJ20: FALSE | JK20: FALSE | JL20: FALSE | JM20: FALSE | JN20: FALSE | JO20: FALSE | JP20: FALSE | JQ20: FALSE | JR20: FALSE | JS20: FALSE | JT20: FALSE | JU20: FALSE | JV20: FALSE | JW20: FALSE | JX20: FALSE | JY20: FALSE | JZ20: FALSE | KA20: FALSE | KB20: FALSE | KC20: FALSE | KD20: FALSE | KE20: FALSE | KF20: FALSE | KG20: FALSE | KH20: FALSE | KI20: FALSE | KJ20: FALSE | KK20: FALSE | KL20: FALSE | KM20: FALSE | KN20: FALSE | KO20: FALSE | KP20: FALSE | KQ20: FALSE | KR20: FALSE | KS20: FALSE | KT20: FALSE
B21: Long-term Growth Period | G21: =G17>$E$12 -> FALSE | H21: FALSE | I21: FALSE | J21: FALSE | K21: FALSE | L21: FALSE | M21: FALSE | N21: FALSE | O21: FALSE | P21: FALSE | Q21: TRUE | R21: TRUE | S21: TRUE | T21: TRUE | U21: TRUE | V21: TRUE | W21: TRUE | X21: TRUE | Y21: TRUE | Z21: TRUE | AA21: TRUE | AB21: TRUE | AC21: TRUE | AD21: TRUE | AE21: TRUE | AF21: TRUE | AG21: TRUE | AH21: TRUE | AI21: TRUE | AJ21: TRUE | AK21: TRUE | AL21: TRUE | AM21: TRUE | AN21: TRUE | AO21: TRUE | AP21: TRUE | AQ21: TRUE | AR21: TRUE | AS21: TRUE | AT21: TRUE | AU21: TRUE | AV21: TRUE | AW21: TRUE | AX21: TRUE | AY21: TRUE | AZ21: TRUE | BA21: TRUE | BB21: TRUE | BC21: TRUE | BD21: TRUE | BE21: TRUE | BF21: TRUE | BG21: TRUE | BH21: TRUE | BI21: TRUE | BJ21: TRUE | BK21: TRUE | BL21: TRUE | BM21: TRUE | BN21: TRUE | BO21: TRUE | BP21: TRUE | BQ21: TRUE | BR21: TRUE | BS21: =BS17>$E$12 -> TRUE | BT21: TRUE | BU21: TRUE | BV21: TRUE | BW21: TRUE | BX21: TRUE | BY21: TRUE | BZ21: TRUE | CA21: TRUE | CB21: TRUE | CC21: TRUE | CD21: TRUE | CE21: TRUE | CF21: TRUE | CG21: TRUE | CH21: TRUE | CI21: TRUE | CJ21: TRUE | CK21: TRUE | CL21: TRUE | CM21: TRUE | CN21: TRUE | CO21: TRUE | CP21: TRUE | CQ21: TRUE | CR21: TRUE | CS21: TRUE | CT21: TRUE | CU21: TRUE | CV21: TRUE | CW21: TRUE | CX21: TRUE | CY21: TRUE | CZ21: TRUE | DA21: TRUE | DB21: TRUE | DC21: TRUE | DD21: TRUE | DE21: TRUE | DF21: TRUE | DG21: TRUE | DH21: TRUE | DI21: TRUE | DJ21: TRUE | DK21: TRUE | DL21: TRUE | DM21: TRUE | DN21: TRUE | DO21: TRUE | DP21: TRUE | DQ21: TRUE | DR21: TRUE | DS21: TRUE | DT21: TRUE | DU21: TRUE | DV21: TRUE | DW21: TRUE | DX21: TRUE | DY21: TRUE | DZ21: TRUE | EA21: TRUE | EB21: TRUE | EC21: TRUE | ED21: TRUE | EE21: =EE17>$E$12 -> TRUE | EF21: TRUE | EG21: TRUE | EH21: TRUE | EI21: TRUE | EJ21: TRUE | EK21: TRUE | EL21: TRUE | EM21: TRUE | EN21: TRUE | EO21: TRUE | EP21: TRUE | EQ21: TRUE | ER21: TRUE | ES21: TRUE | ET21: TRUE | EU21: TRUE | EV21: TRUE | EW21: TRUE | EX21: TRUE | EY21: TRUE | EZ21: TRUE | FA21: TRUE | FB21: TRUE | FC21: TRUE | FD21: TRUE | FE21: TRUE | FF21: TRUE | FG21: TRUE | FH21: TRUE | FI21: TRUE | FJ21: TRUE | FK21: TRUE | FL21: TRUE | FM21: TRUE | FN21: TRUE | FO21: TRUE | FP21: TRUE | FQ21: TRUE | FR21: TRUE | FS21: TRUE | FT21: TRUE | FU21: TRUE | FV21: TRUE | FW21: TRUE | FX21: TRUE | FY21: TRUE | FZ21: TRUE | GA21: TRUE | GB21: TRUE | GC21: TRUE | GD21: TRUE | GE21: TRUE | GF21: TRUE | GG21: TRUE | GH21: TRUE | GI21: TRUE | GJ21: TRUE | GK21: TRUE | GL21: TRUE | GM21: TRUE | GN21: TRUE | GO21: TRUE | GP21: TRUE | GQ21: =GQ17>$E$12 -> TRUE | GR21: TRUE | GS21: TRUE | GT21: TRUE | GU21: TRUE | GV21: TRUE | GW21: TRUE | GX21: TRUE | GY21: TRUE | GZ21: TRUE | HA21: TRUE | HB21: TRUE | HC21: TRUE | HD21: TRUE | HE21: TRUE | HF21: TRUE | HG21: TRUE | HH21: TRUE | HI21: TRUE | HJ21: TRUE | HK21: TRUE | HL21: TRUE | HM21: TRUE | HN21: TRUE | HO21: TRUE | HP21: TRUE | HQ21: TRUE | HR21: TRUE | HS21: TRUE | HT21: TRUE | HU21: TRUE | HV21: TRUE | HW21: TRUE | HX21: TRUE | HY21: TRUE | HZ21: TRUE | IA21: TRUE | IB21: TRUE | IC21: TRUE | ID21: TRUE | IE21: TRUE | IF21: TRUE | IG21: TRUE | IH21: TRUE | II21: TRUE | IJ21: TRUE | IK21: TRUE | IL21: TRUE | IM21: TRUE | IN21: TRUE | IO21: TRUE | IP21: TRUE | IQ21: TRUE | IR21: TRUE | IS21: TRUE | IT21: TRUE | IU21: TRUE | IV21: TRUE | IW21: TRUE | IX21: TRUE | IY21: TRUE | IZ21: TRUE | JA21: TRUE | JB21: TRUE | JC21: =JC17>$E$12 -> TRUE | JD21: TRUE | JE21: TRUE | JF21: TRUE | JG21: TRUE | JH21: TRUE | JI21: TRUE | JJ21: TRUE | JK21: TRUE | JL21: TRUE | JM21: TRUE | JN21: TRUE | JO21: TRUE | JP21: TRUE | JQ21: TRUE | JR21: TRUE | JS21: TRUE | JT21: TRUE | JU21: TRUE | JV21: TRUE | JW21: TRUE | JX21: TRUE | JY21: TRUE | JZ21: TRUE | KA21: TRUE | KB21: TRUE | KC21: TRUE | KD21: TRUE | KE21: TRUE | KF21: TRUE | KG21: TRUE | KH21: TRUE | KI21: TRUE | KJ21: TRUE | KK21: TRUE | KL21: TRUE | KM21: TRUE | KN21: TRUE | KO21: TRUE | KP21: TRUE | KQ21: TRUE | KR21: TRUE | KS21: TRUE | KT21: TRUE
A22: Theoretical Value
B23: Growth Rate | G23: =G20*$E$4+G21*$E$5 -> 0.3 | H23: 0.3 | I23: 0.3 | J23: 0.3 | K23: 0.3 | L23: 0.3 | M23: 0.3 | N23: 0.3 | O23: 0.3 | P23: 0.3 | Q23: 0.02 | R23: 0.02 | S23: 0.02 | T23: 0.02 | U23: 0.02 | V23: 0.02 | W23: 0.02 | X23: 0.02 | Y23: 0.02 | Z23: 0.02 | AA23: 0.02 | AB23: 0.02 | AC23: 0.02 | AD23: 0.02 | AE23: 0.02 | AF23: 0.02 | AG23: 0.02 | AH23: 0.02 | AI23: 0.02 | AJ23: 0.02 | AK23: 0.02 | AL23: 0.02 | AM23: 0.02 | AN23: 0.02 | AO23: 0.02 | AP23: 0.02 | AQ23: 0.02 | AR23: 0.02 | AS23: 0.02 | AT23: 0.02 | AU23: 0.02 | AV23: 0.02 | AW23: 0.02 | AX23: 0.02 | AY23: 0.02 | AZ23: 0.02 | BA23: 0.02 | BB23: 0.02 | BC23: 0.02 | BD23: 0.02 | BE23: 0.02 | BF23: 0.02 | BG23: 0.02 | BH23: 0.02 | BI23: 0.02 | BJ23: 0.02 | BK23: 0.02 | BL23: 0.02 | BM23: 0.02 | BN23: 0.02 | BO23: 0.02 | BP23: 0.02 | BQ23: 0.02 | BR23: 0.02 | BS23: =BS20*$E$4+BS21*$E$5 -> 0.02 | BT23: 0.02 | BU23: 0.02 | BV23: 0.02 | BW23: 0.02 | BX23: 0.02 | BY23: 0.02 | BZ23: 0.02 | CA23: 0.02 | CB23: 0.02 | CC23: 0.02 | CD23: 0.02 | CE23: 0.02 | CF23: 0.02 | CG23: 0.02 | CH23: 0.02 | CI23: 0.02 | CJ23: 0.02 | CK23: 0.02 | CL23: 0.02 | CM23: 0.02 | CN23: 0.02 | CO23: 0.02 | CP23: 0.02 | CQ23: 0.02 | CR23: 0.02 | CS23: 0.02 | CT23: 0.02 | CU23: 0.02 | CV23: 0.02 | CW23: 0.02 | CX23: 0.02 | CY23: 0.02 | CZ23: 0.02 | DA23: 0.02 | DB23: 0.02 | DC23: 0.02 | DD23: 0.02 | DE23: 0.02 | DF23: 0.02 | DG23: 0.02 | DH23: 0.02 | DI23: 0.02 | DJ23: 0.02 | DK23: 0.02 | DL23: 0.02 | DM23: 0.02 | DN23: 0.02 | DO23: 0.02 | DP23: 0.02 | DQ23: 0.02 | DR23: 0.02 | DS23: 0.02 | DT23: 0.02 | DU23: 0.02 | DV23: 0.02 | DW23: 0.02 | DX23: 0.02 | DY23: 0.02 | DZ23: 0.02 | EA23: 0.02 | EB23: 0.02 | EC23: 0.02 | ED23: 0.02 | EE23: =EE20*$E$4+EE21*$E$5 -> 0.02 | EF23: 0.02 | EG23: 0.02 | EH23: 0.02 | EI23: 0.02 | EJ23: 0.02 | EK23: 0.02 | EL23: 0.02 | EM23: 0.02 | EN23: 0.02 | EO23: 0.02 | EP23: 0.02 | EQ23: 0.02 | ER23: 0.02 | ES23: 0.02 | ET23: 0.02 | EU23: 0.02 | EV23: 0.02 | EW23: 0.02 | EX23: 0.02 | EY23: 0.02 | EZ23: 0.02 | FA23: 0.02 | FB23: 0.02 | FC23: 0.02 | FD23: 0.02 | FE23: 0.02 | FF23: 0.02 | FG23: 0.02 | FH23: 0.02 | FI23: 0.02 | FJ23: 0.02 | FK23: 0.02 | FL23: 0.02 | FM23: 0.02 | FN23: 0.02 | FO23: 0.02 | FP23: 0.02 | FQ23: 0.02 | FR23: 0.02 | FS23: 0.02 | FT23: 0.02 | FU23: 0.02 | FV23: 0.02 | FW23: 0.02 | FX23: 0.02 | FY23: 0.02 | FZ23: 0.02 | GA23: 0.02 | GB23: 0.02 | GC23: 0.02 | GD23: 0.02 | GE23: 0.02 | GF23: 0.02 | GG23: 0.02 | GH23: 0.02 | GI23: 0.02 | GJ23: 0.02 | GK23: 0.02 | GL23: 0.02 | GM23: 0.02 | GN23: 0.02 | GO23: 0.02 | GP23: 0.02 | GQ23: =GQ20*$E$4+GQ21*$E$5 -> 0.02 | GR23: 0.02 | GS23: 0.02 | GT23: 0.02 | GU23: 0.02 | GV23: 0.02 | GW23: 0.02 | GX23: 0.02 | GY23: 0.02 | GZ23: 0.02 | HA23: 0.02 | HB23: 0.02 | HC23: 0.02 | HD23: 0.02 | HE23: 0.02 | HF23: 0.02 | HG23: 0.02 | HH23: 0.02 | HI23: 0.02 | HJ23: 0.02 | HK23: 0.02 | HL23: 0.02 | HM23: 0.02 | HN23: 0.02 | HO23: 0.02 | HP23: 0.02 | HQ23: 0.02 | HR23: 0.02 | HS23: 0.02 | HT23: 0.02 | HU23: 0.02 | HV23: 0.02 | HW23: 0.02 | HX23: 0.02 | HY23: 0.02 | HZ23: 0.02 | IA23: 0.02 | IB23: 0.02 | IC23: 0.02 | ID23: 0.02 | IE23: 0.02 | IF23: 0.02 | IG23: 0.02 | IH23: 0.02 | II23: 0.02 | IJ23: 0.02 | IK23: 0.02 | IL23: 0.02 | IM23: 0.02 | IN23: 0.02 | IO23: 0.02 | IP23: 0.02 | IQ23: 0.02 | IR23: 0.02 | IS23: 0.02 | IT23: 0.02 | IU23: 0.02 | IV23: 0.02 | IW23: 0.02 | IX23: 0.02 | IY23: 0.02 | IZ23: 0.02 | JA23: 0.02 | JB23: 0.02 | JC23: =JC20*$E$4+JC21*$E$5 -> 0.02 | JD23: 0.02 | JE23: 0.02 | JF23: 0.02 | JG23: 0.02 | JH23: 0.02 | JI23: 0.02 | JJ23: 0.02 | JK23: 0.02 | JL23: 0.02 | JM23: 0.02 | JN23: 0.02 | JO23: 0.02 | JP23: 0.02 | JQ23: 0.02 | JR23: 0.02 | JS23: 0.02 | JT23: 0.02 | JU23: 0.02 | JV23: 0.02 | JW23: 0.02 | JX23: 0.02 | JY23: 0.02 | JZ23: 0.02 | KA23: 0.02 | KB23: 0.02 | KC23: 0.02 | KD23: 0.02 | KE23: 0.02 | KF23: 0.02 | KG23: 0.02 | KH23: 0.02 | KI23: 0.02 | KJ23: 0.02 | KK23: 0.02 | KL23: 0.02 | KM23: 0.02 | KN23: 0.02 | KO23: 0.02 | KP23: 0.02 | KQ23: 0.02 | KR23: 0.02 | KS23: 0.02 | KT23: 0.02
B24: Revenues | F24: =E7 -> 100 | G24: =F24*(1+G23) -> 130 | H24: =G24*(1+H23) -> 169 | I24: 219.7 | J24: 285.61 | K24: 371.293 | L24: 482.6809 | M24: 627.48517 | N24: 815.730721 | O24: 1060.449937 | P24: 1378.584918 | Q24: 1406.156617 | R24: 1434.279749 | S24: 1462.965344 | T24: 1492.224651 | U24: 1522.069144 | V24: 1552.510527 | W24: 1583.560738 | X24: 1615.231952 | Y24: 1647.536591 | Z24: 1680.487323 | AA24: 1714.09707 | AB24: 1748.379011 | AC24: 1783.346591 | AD24: 1819.013523 | AE24: 1855.393793 | AF24: 1892.501669 | AG24: 1930.351703 | AH24: 1968.958737 | AI24: 2008.337912 | AJ24: 2048.50467 | AK24: 2089.474763 | AL24: 2131.264258 | AM24: 2173.889544 | AN24: 2217.367334 | AO24: 2261.714681 | AP24: 2306.948975 | AQ24: 2353.087954 | AR24: 2400.149713 | AS24: 2448.152708 | AT24: 2497.115762 | AU24: 2547.058077 | AV24: 2597.999239 | AW24: 2649.959223 | AX24: 2702.958408 | AY24: 2757.017576 | AZ24: 2812.157927 | BA24: 2868.401086 | BB24: 2925.769108 | BC24: 2984.28449 | BD24: 3043.97018 | BE24: 3104.849583 | BF24: 3166.946575 | BG24: 3230.285506 | BH24: 3294.891217 | BI24: 3360.789041 | BJ24: 3428.004822 | BK24: 3496.564918 | BL24: 3566.496217 | BM24: 3637.826141 | BN24: 3710.582664 | BO24: 3784.794317 | BP24: 3860.490203 | BQ24: 3937.700007 | BR24: 4016.454007 | BS24: 4096.783088 | BT24: =BS24*(1+BT23) -> 4178.718749 | BU24: 4262.293124 | BV24: 4347.538987 | BW24: 4434.489767 | BX24: 4523.179562 | BY24: 4613.643153 | BZ24: 4705.916016 | CA24: 4800.034337 | CB24: 4896.035023 | CC24: 4993.955724 | CD24: 5093.834838 | CE24: 5195.711535 | CF24: 5299.625766 | CG24: 5405.618281 | CH24: 5513.730647 | CI24: 5624.00526 | CJ24: 5736.485365 | CK24: 5851.215072 | CL24: 5968.239374 | CM24: 6087.604161 | CN24: 6209.356244 | CO24: 6333.543369 | CP24: 6460.214236 | CQ24: 6589.418521 | CR24: 6721.206892 | CS24: 6855.631029 | CT24: 6992.74365 | CU24: 7132.598523 | CV24: 7275.250493 | CW24: 7420.755503 | CX24: 7569.170613 | CY24: 7720.554026 | CZ24: 7874.965106 | DA24: 8032.464408 | DB24: 8193.113697 | DC24: 8356.97597 | DD24: 8524.11549 | DE24: 8694.5978 | DF24: 8868.489756 | DG24: 9045.859551 | DH24: 9226.776742 | DI24: 9411.312277 | DJ24: 9599.538522 | DK24: 9791.529293 | DL24: 9987.359878 | DM24: 10187.10708 | DN24: 10390.84922 | DO24: 10598.6662 | DP24: 10810.63953 | DQ24: 11026.85232 | DR24: 11247.38936 | DS24: 11472.33715 | DT24: 11701.78389 | DU24: 11935.81957 | DV24: 12174.53596 | DW24: 12418.02668 | DX24: 12666.38722 | DY24: 12919.71496 | DZ24: 13178.10926 | EA24: 13441.67144 | EB24: 13710.50487 | EC24: 13984.71497 | ED24: 14264.40927 | EE24: 14549.69745 | EF24: =EE24*(1+EF23) -> 14840.6914 | EG24: 15137.50523 | EH24: 15440.25534 | EI24: 15749.06044 | EJ24: 16064.04165 | EK24: 16385.32249 | EL24: 16713.02894 | EM24: 17047.28951 | EN24: 17388.2353 | EO24: 17736.00001 | EP24: 18090.72001 | EQ24: 18452.53441 | ER24: 18821.5851 | ES24: 19198.0168 | ET24: 19581.97714 | EU24: 19973.61668 | EV24: 20373.08901 | EW24: 20780.55079 | EX24: 21196.16181 | EY24: 21620.08505 | EZ24: 22052.48675 | FA24: 22493.53648 | FB24: 22943.40721 | FC24: 23402.27536 | FD24: 23870.32086 | FE24: 24347.72728 | FF24: 24834.68183 | FG24: 25331.37546 | FH24: 25838.00297 | FI24: 26354.76303 | FJ24: 26881.85829 | FK24: 27419.49546 | FL24: 27967.88537 | FM24: 28527.24307 | FN24: 29097.78793 | FO24: 29679.74369 | FP24: 30273.33857 | FQ24: 30878.80534 | FR24: 31496.38145 | FS24: 32126.30907 | FT24: 32768.83526 | FU24: 33424.21196 | FV24: 34092.6962 | FW24: 34774.55012 | FX24: 35470.04113 | FY24: 36179.44195 | FZ24: 36903.03079 | GA24: 37641.0914 | GB24: 38393.91323 | GC24: 39161.7915 | GD24: 39945.02733 | GE24: 40743.92787 | GF24: 41558.80643 | GG24: 42389.98256 | GH24: 43237.78221 | GI24: 44102.53785 | GJ24: 44984.58861 | GK24: 45884.28038 | GL24: 46801.96599 | GM24: 47738.00531 | GN24: 48692.76542 | GO24: 49666.62073 | GP24: 50659.95314 | GQ24: 51673.1522 | GR24: =GQ24*(1+GR23) -> 52706.61525 | GS24: 53760.74755 | GT24: 54835.9625 | GU24: 55932.68175 | GV24: 57051.33539 | GW24: 58192.3621 | GX24: 59356.20934 | GY24: 60543.33352 | GZ24: 61754.2002 | HA24: 62989.2842 | HB24: 64249.06988 | HC24: 65534.05128 | HD24: 66844.73231 | HE24: 68181.62695 | HF24: 69545.25949 | HG24: 70936.16468 | HH24: 72354.88797 | HI24: 73801.98573 | HJ24: 75278.02545 | HK24: 76783.58596 | HL24: 78319.25768 | HM24: 79885.64283 | HN24: 81483.35569 | HO24: 83113.0228 | HP24: 84775.28326 | HQ24: 86470.78892 | HR24: 88200.2047 | HS24: 89964.20879 | HT24: 91763.49297 | HU24: 93598.76283 | HV24: 95470.73809 | HW24: 97380.15285 | HX24: 99327.75591 | HY24: 101314.311 | HZ24: 103340.5972 | IA24: 105407.4092 | IB24: 107515.5574 | IC24: 109665.8685 | ID24: 111859.1859 | IE24: 114096.3696 | IF24: 116378.297 | IG24: 118705.8629 | IH24: 121079.9802 | II24: 123501.5798 | IJ24: 125971.6114 | IK24: 128491.0436 | IL24: 131060.8645 | IM24: 133682.0818 | IN24: 136355.7234 | IO24: 139082.8379 | IP24: 141864.4947 | IQ24: 144701.7845 | IR24: 147595.8202 | IS24: 150547.7366 | IT24: 153558.6914 | IU24: 156629.8652 | IV24: 159762.4625 | IW24: 162957.7118 | IX24: 166216.866 | IY24: 169541.2033 | IZ24: 172932.0274 | JA24: 176390.6679 | JB24: 179918.4813 | JC24: 183516.8509 | JD24: =JC24*(1+JD23) -> 187187.1879 | JE24: 190930.9317 | JF24: 194749.5503 | JG24: 198644.5413 | JH24: 202617.4322 | JI24: 206669.7808 | JJ24: 210803.1764 | JK24: 215019.2399 | JL24: 219319.6247 | JM24: 223706.0172 | JN24: 228180.1376 | JO24: 232743.7403 | JP24: 237398.6151 | JQ24: 242146.5874 | JR24: 246989.5192 | JS24: 251929.3096 | JT24: 256967.8958 | JU24: 262107.2537 | JV24: 267349.3987 | JW24: 272696.3867 | JX24: 278150.3145 | JY24: 283713.3207 | JZ24: 289387.5872 | KA24: 295175.3389 | KB24: 301078.8457 | KC24: 307100.4226 | KD24: 313242.431 | KE24: 319507.2797 | KF24: 325897.4253 | KG24: 332415.3738 | KH24: 339063.6812 | KI24: 345844.9549 | KJ24: 352761.854 | KK24: 359817.091 | KL24: 367013.4329 | KM24: 374353.7015 | KN24: 381840.7756 | KO24: 389477.5911 | KP24: 397267.1429 | KQ24: 405212.4857 | KR24: 413316.7355 | KS24: 421583.0702 | KT24: 430014.7316
B25: Operating Expense | E25: =E10 -> 0.2 | G25: =G24*(1-$E$10) -> 104 | H25: =H24*(1-$E$10) -> 135.2 | I25: 175.76 | J25: 228.488 | K25: 297.0344 | L25: 386.14472 | M25: 501.988136 | N25: 652.5845768 | O25: 848.3599498 | P25: 1102.867935 | Q25: 1124.925293 | R25: 1147.423799 | S25: 1170.372275 | T25: 1193.779721 | U25: 1217.655315 | V25: 1242.008422 | W25: 1266.84859 | X25: 1292.185562 | Y25: 1318.029273 | Z25: 1344.389859 | AA25: 1371.277656 | AB25: 1398.703209 | AC25: 1426.677273 | AD25: 1455.210818 | AE25: 1484.315035 | AF25: 1514.001335 | AG25: 1544.281362 | AH25: 1575.166989 | AI25: 1606.670329 | AJ25: 1638.803736 | AK25: 1671.579811 | AL25: 1705.011407 | AM25: 1739.111635 | AN25: 1773.893868 | AO25: 1809.371745 | AP25: 1845.55918 | AQ25: 1882.470363 | AR25: 1920.119771 | AS25: 1958.522166 | AT25: 1997.692609 | AU25: 2037.646462 | AV25: 2078.399391 | AW25: 2119.967379 | AX25: 2162.366726 | AY25: 2205.614061 | AZ25: 2249.726342 | BA25: 2294.720869 | BB25: 2340.615286 | BC25: 2387.427592 | BD25: 2435.176144 | BE25: 2483.879667 | BF25: 2533.55726 | BG25: 2584.228405 | BH25: 2635.912973 | BI25: 2688.631233 | BJ25: 2742.403857 | BK25: 2797.251935 | BL25: 2853.196973 | BM25: 2910.260913 | BN25: 2968.466131 | BO25: 3027.835454 | BP25: 3088.392163 | BQ25: 3150.160006 | BR25: 3213.163206 | BS25: 3277.42647 | BT25: =BT24*(1-$E$10) -> 3342.975 | BU25: 3409.8345 | BV25: 3478.031189 | BW25: 3547.591813 | BX25: 3618.54365 | BY25: 3690.914523 | BZ25: 3764.732813 | CA25: 3840.027469 | CB25: 3916.828019 | CC25: 3995.164579 | CD25: 4075.067871 | CE25: 4156.569228 | CF25: 4239.700613 | CG25: 4324.494625 | CH25: 4410.984517 | CI25: 4499.204208 | CJ25: 4589.188292 | CK25: 4680.972058 | CL25: 4774.591499 | CM25: 4870.083329 | CN25: 4967.484995 | CO25: 5066.834695 | CP25: 5168.171389 | CQ25: 5271.534817 | CR25: 5376.965513 | CS25: 5484.504824 | CT25: 5594.19492 | CU25: 5706.078818 | CV25: 5820.200395 | CW25: 5936.604403 | CX25: 6055.336491 | CY25: 6176.443221 | CZ25: 6299.972085 | DA25: 6425.971527 | DB25: 6554.490957 | DC25: 6685.580776 | DD25: 6819.292392 | DE25: 6955.67824 | DF25: 7094.791805 | DG25: 7236.687641 | DH25: 7381.421393 | DI25: 7529.049821 | DJ25: 7679.630818 | DK25: 7833.223434 | DL25: 7989.887903 | DM25: 8149.685661 | DN25: 8312.679374 | DO25: 8478.932961 | DP25: 8648.511621 | DQ25: 8821.481853 | DR25: 8997.91149 | DS25: 9177.86972 | DT25: 9361.427114 | DU25: 9548.655657 | DV25: 9739.62877 | DW25: 9934.421345 | DX25: 10133.10977 | DY25: 10335.77197 | DZ25: 10542.48741 | EA25: 10753.33716 | EB25: 10968.4039 | EC25: 11187.77198 | ED25: 11411.52742 | EE25: 11639.75796 | EF25: =EF24*(1-$E$10) -> 11872.55312 | EG25: 12110.00419 | EH25: 12352.20427 | EI25: 12599.24835 | EJ25: 12851.23332 | EK25: 13108.25799 | EL25: 13370.42315 | EM25: 13637.83161 | EN25: 13910.58824 | EO25: 14188.80001 | EP25: 14472.57601 | EQ25: 14762.02753 | ER25: 15057.26808 | ES25: 15358.41344 | ET25: 15665.58171 | EU25: 15978.89334 | EV25: 16298.47121 | EW25: 16624.44063 | EX25: 16956.92945 | EY25: 17296.06804 | EZ25: 17641.9894 | FA25: 17994.82919 | FB25: 18354.72577 | FC25: 18721.82028 | FD25: 19096.25669 | FE25: 19478.18182 | FF25: 19867.74546 | FG25: 20265.10037 | FH25: 20670.40238 | FI25: 21083.81042 | FJ25: 21505.48663 | FK25: 21935.59637 | FL25: 22374.30829 | FM25: 22821.79446 | FN25: 23278.23035 | FO25: 23743.79495 | FP25: 24218.67085 | FQ25: 24703.04427 | FR25: 25197.10516 | FS25: 25701.04726 | FT25: 26215.0682 | FU25: 26739.36957 | FV25: 27274.15696 | FW25: 27819.6401 | FX25: 28376.0329 | FY25: 28943.55356 | FZ25: 29522.42463 | GA25: 30112.87312 | GB25: 30715.13059 | GC25: 31329.4332 | GD25: 31956.02186 | GE25: 32595.1423 | GF25: 33247.04514 | GG25: 33911.98605 | GH25: 34590.22577 | GI25: 35282.03028 | GJ25: 35987.67089 | GK25: 36707.42431 | GL25: 37441.57279 | GM25: 38190.40425 | GN25: 38954.21233 | GO25: 39733.29658 | GP25: 40527.96251 | GQ25: 41338.52176 | GR25: =GR24*(1-$E$10) -> 42165.2922 | GS25: 43008.59804 | GT25: 43868.77 | GU25: 44746.1454 | GV25: 45641.06831 | GW25: 46553.88968 | GX25: 47484.96747 | GY25: 48434.66682 | GZ25: 49403.36016 | HA25: 50391.42736 | HB25: 51399.25591 | HC25: 52427.24102 | HD25: 53475.78584 | HE25: 54545.30156 | HF25: 55636.20759 | HG25: 56748.93174 | HH25: 57883.91038 | HI25: 59041.58859 | HJ25: 60222.42036 | HK25: 61426.86877 | HL25: 62655.40614 | HM25: 63908.51426 | HN25: 65186.68455 | HO25: 66490.41824 | HP25: 67820.22661 | HQ25: 69176.63114 | HR25: 70560.16376 | HS25: 71971.36704 | HT25: 73410.79438 | HU25: 74879.01026 | HV25: 76376.59047 | HW25: 77904.12228 | HX25: 79462.20472 | HY25: 81051.44882 | HZ25: 82672.4778 | IA25: 84325.92735 | IB25: 86012.4459 | IC25: 87732.69482 | ID25: 89487.34871 | IE25: 91277.09569 | IF25: 93102.6376 | IG25: 94964.69035 | IH25: 96863.98416 | II25: 98801.26384 | IJ25: 100777.2891 | IK25: 102792.8349 | IL25: 104848.6916 | IM25: 106945.6654 | IN25: 109084.5787 | IO25: 111266.2703 | IP25: 113491.5957 | IQ25: 115761.4276 | IR25: 118076.6562 | IS25: 120438.1893 | IT25: 122846.9531 | IU25: 125303.8922 | IV25: 127809.97 | IW25: 130366.1694 | IX25: 132973.4928 | IY25: 135632.9626 | IZ25: 138345.6219 | JA25: 141112.5343 | JB25: 143934.785 | JC25: 146813.4807 | JD25: =JD24*(1-$E$10) -> 149749.7503 | JE25: 152744.7453 | JF25: 155799.6403 | JG25: 158915.6331 | JH25: 162093.9457 | JI25: 165335.8246 | JJ25: 168642.5411 | JK25: 172015.392 | JL25: 175455.6998 | JM25: 178964.8138 | JN25: 182544.1101 | JO25: 186194.9923 | JP25: 189918.8921 | JQ25: 193717.2699 | JR25: 197591.6153 | JS25: 201543.4477 | JT25: 205574.3166 | JU25: 209685.8029 | JV25: 213879.519 | JW25: 218157.1094 | JX25: 222520.2516 | JY25: 226970.6566 | JZ25: 231510.0697 | KA25: 236140.2711 | KB25: 240863.0765 | KC25: 245680.3381 | KD25: 250593.9448 | KE25: 255605.8237 | KF25: 260717.9402 | KG25: 265932.299 | KH25: 271250.945 | KI25: 276675.9639 | KJ25: 282209.4832 | KK25: 287853.6728 | KL25: 293610.7463 | KM25: 299482.9612 | KN25: 305472.6204 | KO25: 311582.0729 | KP25: 317813.7143 | KQ25: 324169.9886 | KR25: 330653.3884 | KS25: 337266.4561 | KT25: 344011.7853
B27: A/R Level | E27: =E8 -> 0.25 | F27: =F24*$E$27 -> 25 | G27: =G24*$E$27 -> 32.5 | H27: 42.25 | I27: 54.925 | J27: 71.4025 | K27: 92.82325 | L27: 120.670225 | M27: 156.8712925 | N27: 203.9326803 | O27: 265.1124843 | P27: 344.6462296 | Q27: 351.5391542 | R27: 358.5699373 | S27: 365.741336 | T27: 373.0561628 | U27: 380.517286 | V27: 388.1276317 | W27: 395.8901844 | X27: 403.8079881 | Y27: 411.8841478 | Z27: 420.1218308 | AA27: 428.5242674 | AB27: 437.0947527 | AC27: 445.8366478 | AD27: 454.7533808 | AE27: 463.8484484 | AF27: 473.1254173 | AG27: 482.5879257 | AH27: 492.2396842 | AI27: 502.0844779 | AJ27: 512.1261674 | AK27: 522.3686908 | AL27: 532.8160646 | AM27: 543.4723859 | AN27: 554.3418336 | AO27: 565.4286703 | AP27: 576.7372437 | AQ27: 588.2719886 | AR27: 600.0374283 | AS27: 612.0381769 | AT27: 624.2789404 | AU27: 636.7645193 | AV27: 649.4998096 | AW27: 662.4898058 | AX27: 675.7396019 | AY27: 689.254394 | AZ27: 703.0394819 | BA27: 717.1002715 | BB27: 731.4422769 | BC27: 746.0711225 | BD27: 760.9925449 | BE27: 776.2123958 | BF27: 791.7366437 | BG27: 807.5713766 | BH27: 823.7228041 | BI27: 840.1972602 | BJ27: 857.0012054 | BK27: 874.1412295 | BL27: 891.6240541 | BM27: 909.4565352 | BN27: 927.6456659 | BO27: 946.1985792 | BP27: 965.1225508 | BQ27: 984.4250018 | BR27: 1004.113502 | BS27: =BS24*$E$27 -> 1024.195772 | BT27: 1044.679687 | BU27: 1065.573281 | BV27: 1086.884747 | BW27: 1108.622442 | BX27: 1130.79489 | BY27: 1153.410788 | BZ27: 1176.479004 | CA27: 1200.008584 | CB27: 1224.008756 | CC27: 1248.488931 | CD27: 1273.45871 | CE27: 1298.927884 | CF27: 1324.906441 | CG27: 1351.40457 | CH27: 1378.432662 | CI27: 1406.001315 | CJ27: 1434.121341 | CK27: 1462.803768 | CL27: 1492.059843 | CM27: 1521.90104 | CN27: 1552.339061 | CO27: 1583.385842 | CP27: 1615.053559 | CQ27: 1647.35463 | CR27: 1680.301723 | CS27: 1713.907757 | CT27: 1748.185913 | CU27: 1783.149631 | CV27: 1818.812623 | CW27: 1855.188876 | CX27: 1892.292653 | CY27: 1930.138506 | CZ27: 1968.741277 | DA27: 2008.116102 | DB27: 2048.278424 | DC27: 2089.243993 | DD27: 2131.028872 | DE27: 2173.64945 | DF27: 2217.122439 | DG27: 2261.464888 | DH27: 2306.694185 | DI27: 2352.828069 | DJ27: 2399.884631 | DK27: 2447.882323 | DL27: 2496.83997 | DM27: 2546.776769 | DN27: 2597.712304 | DO27: 2649.66655 | DP27: 2702.659881 | DQ27: 2756.713079 | DR27: 2811.847341 | DS27: 2868.084287 | DT27: 2925.445973 | DU27: 2983.954893 | DV27: 3043.633991 | DW27: 3104.50667 | DX27: 3166.596804 | DY27: 3229.92874 | DZ27: 3294.527315 | EA27: 3360.417861 | EB27: 3427.626218 | EC27: 3496.178743 | ED27: 3566.102317 | EE27: =EE24*$E$27 -> 3637.424364 | EF27: 3710.172851 | EG27: 3784.376308 | EH27: 3860.063834 | EI27: 3937.265111 | EJ27: 4016.010413 | EK27: 4096.330621 | EL27: 4178.257234 | EM27: 4261.822378 | EN27: 4347.058826 | EO27: 4434.000003 | EP27: 4522.680003 | EQ27: 4613.133603 | ER27: 4705.396275 | ES27: 4799.5042 | ET27: 4895.494284 | EU27: 4993.40417 | EV27: 5093.272253 | EW27: 5195.137698 | EX27: 5299.040452 | EY27: 5405.021261 | EZ27: 5513.121687 | FA27: 5623.38412 | FB27: 5735.851803 | FC27: 5850.568839 | FD27: 5967.580216 | FE27: 6086.93182 | FF27: 6208.670456 | FG27: 6332.843865 | FH27: 6459.500743 | FI27: 6588.690758 | FJ27: 6720.464573 | FK27: 6854.873864 | FL27: 6991.971341 | FM27: 7131.810768 | FN27: 7274.446984 | FO27: 7419.935923 | FP27: 7568.334642 | FQ27: 7719.701335 | FR27: 7874.095361 | FS27: 8031.577269 | FT27: 8192.208814 | FU27: 8356.05299 | FV27: 8523.17405 | FW27: 8693.637531 | FX27: 8867.510282 | FY27: 9044.860487 | FZ27: 9225.757697 | GA27: 9410.272851 | GB27: 9598.478308 | GC27: 9790.447874 | GD27: 9986.256832 | GE27: 10185.98197 | GF27: 10389.70161 | GG27: 10597.49564 | GH27: 10809.44555 | GI27: 11025.63446 | GJ27: 11246.14715 | GK27: 11471.0701 | GL27: 11700.4915 | GM27: 11934.50133 | GN27: 12173.19135 | GO27: 12416.65518 | GP27: 12664.98829 | GQ27: =GQ24*$E$27 -> 12918.28805 | GR27: 13176.65381 | GS27: 13440.18689 | GT27: 13708.99063 | GU27: 13983.17044 | GV27: 14262.83385 | GW27: 14548.09052 | GX27: 14839.05233 | GY27: 15135.83338 | GZ27: 15438.55005 | HA27: 15747.32105 | HB27: 16062.26747 | HC27: 16383.51282 | HD27: 16711.18308 | HE27: 17045.40674 | HF27: 17386.31487 | HG27: 17734.04117 | HH27: 18088.72199 | HI27: 18450.49643 | HJ27: 18819.50636 | HK27: 19195.89649 | HL27: 19579.81442 | HM27: 19971.41071 | HN27: 20370.83892 | HO27: 20778.2557 | HP27: 21193.82081 | HQ27: 21617.69723 | HR27: 22050.05118 | HS27: 22491.0522 | HT27: 22940.87324 | HU27: 23399.69071 | HV27: 23867.68452 | HW27: 24345.03821 | HX27: 24831.93898 | HY27: 25328.57776 | HZ27: 25835.14931 | IA27: 26351.8523 | IB27: 26878.88934 | IC27: 27416.46713 | ID27: 27964.79647 | IE27: 28524.0924 | IF27: 29094.57425 | IG27: 29676.46574 | IH27: 30269.99505 | II27: 30875.39495 | IJ27: 31492.90285 | IK27: 32122.76091 | IL27: 32765.21612 | IM27: 33420.52045 | IN27: 34088.93086 | IO27: 34770.70947 | IP27: 35466.12366 | IQ27: 36175.44614 | IR27: 36898.95506 | IS27: 37636.93416 | IT27: 38389.67284 | IU27: 39157.4663 | IV27: 39940.61563 | IW27: 40739.42794 | IX27: 41554.2165 | IY27: 42385.30083 | IZ27: 43233.00684 | JA27: 44097.66698 | JB27: 44979.62032 | JC27: =JC24*$E$27 -> 45879.21273 | JD27: 46796.79698 | JE27: 47732.73292 | JF27: 48687.38758 | JG27: 49661.13533 | JH27: 50654.35804 | JI27: 51667.4452 | JJ27: 52700.7941 | JK27: 53754.80998 | JL27: 54829.90618 | JM27: 55926.50431 | JN27: 57045.03439 | JO27: 58185.93508 | JP27: 59349.65378 | JQ27: 60536.64686 | JR27: 61747.3798 | JS27: 62982.32739 | JT27: 64241.97394 | JU27: 65526.81342 | JV27: 66837.34969 | JW27: 68174.09668 | JX27: 69537.57861 | JY27: 70928.33019 | JZ27: 72346.89679 | KA27: 73793.83473 | KB27: 75269.71142 | KC27: 76775.10565 | KD27: 78310.60776 | KE27: 79876.81992 | KF27: 81474.35632 | KG27: 83103.84344 | KH27: 84765.92031 | KI27: 86461.23872 | KJ27: 88190.46349 | KK27: 89954.27276 | KL27: 91753.35822 | KM27: 93588.42538 | KN27: 95460.19389 | KO27: 97369.39777 | KP27: 99316.78572 | KQ27: 101303.1214 | KR27: 103329.1839 | KS27: 105395.7675 | KT27: 107503.6829
B28: Change in Working Capital | G28: =G27-F27 -> 7.5 | H28: =H27-G27 -> 9.75 | I28: 12.675 | J28: 16.4775 | K28: 21.42075 | L28: 27.846975 | M28: 36.2010675 | N28: 47.06138775 | O28: 61.17980407 | P28: 79.5337453 | Q28: 6.892924592 | R28: 7.030783084 | S28: 7.171398746 | T28: 7.314826721 | U28: 7.461123255 | V28: 7.61034572 | W28: 7.762552635 | X28: 7.917803688 | Y28: 8.076159761 | Z28: 8.237682957 | AA28: 8.402436616 | AB28: 8.570485348 | AC28: 8.741895055 | AD28: 8.916732956 | AE28: 9.095067615 | AF28: 9.276968967 | AG28: 9.462508347 | AH28: 9.651758514 | AI28: 9.844793684 | AJ28: 10.04168956 | AK28: 10.24252335 | AL28: 10.44737382 | AM28: 10.65632129 | AN28: 10.86944772 | AO28: 11.08683667 | AP28: 11.30857341 | AQ28: 11.53474487 | AR28: 11.76543977 | AS28: 12.00074857 | AT28: 12.24076354 | AU28: 12.48557881 | AV28: 12.73529039 | AW28: 12.98999619 | AX28: 13.24979612 | AY28: 13.51479204 | AZ28: 13.78508788 | BA28: 14.06078964 | BB28: 14.34200543 | BC28: 14.62884554 | BD28: 14.92142245 | BE28: 15.2198509 | BF28: 15.52424792 | BG28: 15.83473287 | BH28: 16.15142753 | BI28: 16.47445608 | BJ28: 16.8039452 | BK28: 17.14002411 | BL28: 17.48282459 | BM28: 17.83248108 | BN28: 18.1891307 | BO28: 18.55291332 | BP28: 18.92397158 | BQ28: 19.30245102 | BR28: 19.68850004 | BS28: 20.08227004 | BT28: =BT27-BS27 -> 20.48391544 | BU28: 20.89359375 | BV28: 21.31146562 | BW28: 21.73769493 | BX28: 22.17244883 | BY28: 22.61589781 | BZ28: 23.06821577 | CA28: 23.52958008 | CB28: 24.00017168 | CC28: 24.48017512 | CD28: 24.96977862 | CE28: 25.46917419 | CF28: 25.97855768 | CG28: 26.49812883 | CH28: 27.02809141 | CI28: 27.56865323 | CJ28: 28.1200263 | CK28: 28.68242682 | CL28: 29.25607536 | CM28: 29.84119687 | CN28: 30.4380208 | CO28: 31.04678122 | CP28: 31.66771685 | CQ28: 32.30107118 | CR28: 32.94709261 | CS28: 33.60603446 | CT28: 34.27815515 | CU28: 34.96371825 | CV28: 35.66299262 | CW28: 36.37625247 | CX28: 37.10377752 | CY28: 37.84585307 | CZ28: 38.60277013 | DA28: 39.37482553 | DB28: 40.16232204 | DC28: 40.96556848 | DD28: 41.78487985 | DE28: 42.62057745 | DF28: 43.472989 | DG28: 44.34244878 | DH28: 45.22929775 | DI28: 46.13388371 | DJ28: 47.05656138 | DK28: 47.99769261 | DL28: 48.95764646 | DM28: 49.93679939 | DN28: 50.93553538 | DO28: 51.95424609 | DP28: 52.99333101 | DQ28: 54.05319763 | DR28: 55.13426158 | DS28: 56.23694681 | DT28: 57.36168575 | DU28: 58.50891946 | DV28: 59.67909785 | DW28: 60.87267981 | DX28: 62.09013341 | DY28: 63.33193608 | DZ28: 64.5985748 | EA28: 65.89054629 | EB28: 67.20835722 | EC28: 68.55252436 | ED28: 69.92357485 | EE28: 71.32204635 | EF28: =EF27-EE27 -> 72.74848727 | EG28: 74.20345702 | EH28: 75.68752616 | EI28: 77.20127668 | EJ28: 78.74530222 | EK28: 80.32020826 | EL28: 81.92661243 | EM28: 83.56514468 | EN28: 85.23644757 | EO28: 86.94117652 | EP28: 88.68000005 | EQ28: 90.45360005 | ER28: 92.26267205 | ES28: 94.10792549 | ET28: 95.990084 | EU28: 97.90988568 | EV28: 99.8680834 | EW28: 101.8654451 | EX28: 103.902754 | EY28: 105.980809 | EZ28: 108.1004252 | FA28: 110.2624337 | FB28: 112.4676824 | FC28: 114.7170361 | FD28: 117.0113768 | FE28: 119.3516043 | FF28: 121.7386364 | FG28: 124.1734091 | FH28: 126.6568773 | FI28: 129.1900149 | FJ28: 131.7738152 | FK28: 134.4092915 | FL28: 137.0974773 | FM28: 139.8394268 | FN28: 142.6362154 | FO28: 145.4889397 | FP28: 148.3987185 | FQ28: 151.3666928 | FR28: 154.3940267 | FS28: 157.4819072 | FT28: 160.6315454 | FU28: 163.8441763 | FV28: 167.1210598 | FW28: 170.463481 | FX28: 173.8727506 | FY28: 177.3502056 | FZ28: 180.8972097 | GA28: 184.5151539 | GB28: 188.205457 | GC28: 191.9695662 | GD28: 195.8089575 | GE28: 199.7251366 | GF28: 203.7196394 | GG28: 207.7940322 | GH28: 211.9499128 | GI28: 216.1889111 | GJ28: 220.5126893 | GK28: 224.9229431 | GL28: 229.4214019 | GM28: 234.00983 | GN28: 238.6900266 | GO28: 243.4638271 | GP28: 248.3331036 | GQ28: 253.2997657 | GR28: =GR27-GQ27 -> 258.365761 | GS28: 263.5330762 | GT28: 268.8037378 | GU28: 274.1798125 | GV28: 279.6634088 | GW28: 285.2566769 | GX28: 290.9618105 | GY28: 296.7810467 | GZ28: 302.7166676 | HA28: 308.771001 | HB28: 314.946421 | HC28: 321.2453494 | HD28: 327.6702564 | HE28: 334.2236615 | HF28: 340.9081348 | HG28: 347.7262975 | HH28: 354.6808234 | HI28: 361.7744399 | HJ28: 369.0099287 | HK28: 376.3901272 | HL28: 383.9179298 | HM28: 391.5962884 | HN28: 399.4282142 | HO28: 407.4167784 | HP28: 415.565114 | HQ28: 423.8764163 | HR28: 432.3539446 | HS28: 441.0010235 | HT28: 449.821044 | HU28: 458.8174649 | HV28: 467.9938141 | HW28: 477.3536904 | HX28: 486.9007642 | HY28: 496.6387795 | HZ28: 506.5715551 | IA28: 516.7029862 | IB28: 527.0370459 | IC28: 537.5777869 | ID28: 548.3293426 | IE28: 559.2959295 | IF28: 570.481848 | IG28: 581.891485 | IH28: 593.5293147 | II28: 605.399901 | IJ28: 617.507899 | IK28: 629.858057 | IL28: 642.4552181 | IM28: 655.3043225 | IN28: 668.4104089 | IO28: 681.7786171 | IP28: 695.4141895 | IQ28: 709.3224733 | IR28: 723.5089227 | IS28: 737.9791012 | IT28: 752.7386832 | IU28: 767.7934569 | IV28: 783.149326 | IW28: 798.8123125 | IX28: 814.7885588 | IY28: 831.0843299 | IZ28: 847.7060165 | JA28: 864.6601369 | JB28: 881.9533396 | JC28: 899.5924064 | JD28: =JD27-JC27 -> 917.5842545 | JE28: 935.9359396 | JF28: 954.6546584 | JG28: 973.7477516 | JH28: 993.2227066 | JI28: 1013.087161 | JJ28: 1033.348904 | JK28: 1054.015882 | JL28: 1075.0962 | JM28: 1096.598124 | JN28: 1118.530086 | JO28: 1140.900688 | JP28: 1163.718702 | JQ28: 1186.993076 | JR28: 1210.732937 | JS28: 1234.947596 | JT28: 1259.646548 | JU28: 1284.839479 | JV28: 1310.536268 | JW28: 1336.746994 | JX28: 1363.481934 | JY28: 1390.751572 | JZ28: 1418.566604 | KA28: 1446.937936 | KB28: 1475.876695 | KC28: 1505.394228 | KD28: 1535.502113 | KE28: 1566.212155 | KF28: 1597.536398 | KG28: 1629.487126 | KH28: 1662.076869 | KI28: 1695.318406 | KJ28: 1729.224774 | KK28: 1763.80927 | KL28: 1799.085455 | KM28: 1835.067164 | KN28: 1871.768508 | KO28: 1909.203878 | KP28: 1947.387955 | KQ28: 1986.335714 | KR28: 2026.062429 | KS28: 2066.583677 | KT28: 2107.915351
B30: Free Cash Flow | G30: =G24-G25-G28 -> 18.5 | H30: =H24-H25-H28 -> 24.05 | I30: 31.265 | J30: 40.6445 | K30: 52.83785 | L30: 68.689205 | M30: 89.2959665 | N30: 116.0847564 | O30: 150.9101834 | P30: 196.1832384 | Q30: 274.3383988 | R30: 279.8251668 | S30: 285.4216701 | T30: 291.1301035 | U30: 296.9527056 | V30: 302.8917597 | W30: 308.9495949 | X30: 315.1285868 | Y30: 321.4311585 | Z30: 327.8597817 | AA30: 334.4169773 | AB30: 341.1053168 | AC30: 347.9274232 | AD30: 354.8859716 | AE30: 361.9836911 | AF30: 369.2233649 | AG30: 376.6078322 | AH30: 384.1399888 | AI30: 391.8227886 | AJ30: 399.6592444 | AK30: 407.6524293 | AL30: 415.8054779 | AM30: 424.1215874 | AN30: 432.6040192 | AO30: 441.2560996 | AP30: 450.0812215 | AQ30: 459.082846 | AR30: 468.2645029 | AS30: 477.629793 | AT30: 487.1823888 | AU30: 496.9260366 | AV30: 506.8645573 | AW30: 517.0018485 | AX30: 527.3418854 | AY30: 537.8887232 | AZ30: 548.6464976 | BA30: 559.6194276 | BB30: 570.8118161 | BC30: 582.2280524 | BD30: 593.8726135 | BE30: 605.7500658 | BF30: 617.8650671 | BG30: 630.2223684 | BH30: 642.8268158 | BI30: 655.6833521 | BJ30: 668.7970191 | BK30: 682.1729595 | BL30: 695.8164187 | BM30: 709.7327471 | BN30: 723.927402 | BO30: 738.4059501 | BP30: 753.1740691 | BQ30: 768.2375505 | BR30: 783.6023015 | BS30: 799.2743475 | BT30: =BT24-BT25-BT28 -> 815.2598344 | BU30: 831.5650311 | BV30: 848.1963318 | BW30: 865.1602584 | BX30: 882.4634636 | BY30: 900.1127328 | BZ30: 918.1149875 | CA30: 936.4772872 | CB30: 955.206833 | CC30: 974.3109696 | CD30: 993.797189 | CE30: 1013.673133 | CF30: 1033.946595 | CG30: 1054.625527 | CH30: 1075.718038 | CI30: 1097.232399 | CJ30: 1119.177047 | CK30: 1141.560588 | CL30: 1164.391799 | CM30: 1187.679635 | CN30: 1211.433228 | CO30: 1235.661893 | CP30: 1260.37513 | CQ30: 1285.582633 | CR30: 1311.294286 | CS30: 1337.520171 | CT30: 1364.270575 | CU30: 1391.555986 | CV30: 1419.387106 | CW30: 1447.774848 | CX30: 1476.730345 | CY30: 1506.264952 | CZ30: 1536.390251 | DA30: 1567.118056 | DB30: 1598.460417 | DC30: 1630.429626 | DD30: 1663.038218 | DE30: 1696.298982 | DF30: 1730.224962 | DG30: 1764.829461 | DH30: 1800.126051 | DI30: 1836.128572 | DJ30: 1872.851143 | DK30: 1910.308166 | DL30: 1948.514329 | DM30: 1987.484616 | DN30: 2027.234308 | DO30: 2067.778994 | DP30: 2109.134574 | DQ30: 2151.317266 | DR30: 2194.343611 | DS30: 2238.230483 | DT30: 2282.995093 | DU30: 2328.654995 | DV30: 2375.228095 | DW30: 2422.732656 | DX30: 2471.18731 | DY30: 2520.611056 | DZ30: 2571.023277 | EA30: 2622.443742 | EB30: 2674.892617 | EC30: 2728.39047 | ED30: 2782.958279 | EE30: 2838.617445 | EF30: =EF24-EF25-EF28 -> 2895.389794 | EG30: 2953.297589 | EH30: 3012.363541 | EI30: 3072.610812 | EJ30: 3134.063028 | EK30: 3196.744289 | EL30: 3260.679175 | EM30: 3325.892758 | EN30: 3392.410613 | EO30: 3460.258826 | EP30: 3529.464002 | EQ30: 3600.053282 | ER30: 3672.054348 | ES30: 3745.495435 | ET30: 3820.405343 | EU30: 3896.81345 | EV30: 3974.749719 | EW30: 4054.244714 | EX30: 4135.329608 | EY30: 4218.0362 | EZ30: 4302.396924 | FA30: 4388.444863 | FB30: 4476.21376 | FC30: 4565.738035 | FD30: 4657.052796 | FE30: 4750.193852 | FF30: 4845.197729 | FG30: 4942.101683 | FH30: 5040.943717 | FI30: 5141.762591 | FJ30: 5244.597843 | FK30: 5349.4898 | FL30: 5456.479596 | FM30: 5565.609188 | FN30: 5676.921372 | FO30: 5790.459799 | FP30: 5906.268995 | FQ30: 6024.394375 | FR30: 6144.882262 | FS30: 6267.779908 | FT30: 6393.135506 | FU30: 6520.998216 | FV30: 6651.41818 | FW30: 6784.446544 | FX30: 6920.135475 | FY30: 7058.538184 | FZ30: 7199.708948 | GA30: 7343.703127 | GB30: 7490.577189 | GC30: 7640.388733 | GD30: 7793.196508 | GE30: 7949.060438 | GF30: 8108.041647 | GG30: 8270.20248 | GH30: 8435.606529 | GI30: 8604.31866 | GJ30: 8776.405033 | GK30: 8951.933134 | GL30: 9130.971796 | GM30: 9313.591232 | GN30: 9499.863057 | GO30: 9689.860318 | GP30: 9883.657524 | GQ30: 10081.33067 | GR30: =GR24-GR25-GR28 -> 10282.95729 | GS30: 10488.61643 | GT30: 10698.38876 | GU30: 10912.35654 | GV30: 11130.60367 | GW30: 11353.21574 | GX30: 11580.28006 | GY30: 11811.88566 | GZ30: 12048.12337 | HA30: 12289.08584 | HB30: 12534.86756 | HC30: 12785.56491 | HD30: 13041.2762 | HE30: 13302.10173 | HF30: 13568.14376 | HG30: 13839.50664 | HH30: 14116.29677 | HI30: 14398.62271 | HJ30: 14686.59516 | HK30: 14980.32706 | HL30: 15279.93361 | HM30: 15585.53228 | HN30: 15897.24292 | HO30: 16215.18778 | HP30: 16539.49154 | HQ30: 16870.28137 | HR30: 17207.687 | HS30: 17551.84074 | HT30: 17902.87755 | HU30: 18260.9351 | HV30: 18626.1538 | HW30: 18998.67688 | HX30: 19378.65042 | HY30: 19766.22343 | HZ30: 20161.54789 | IA30: 20564.77885 | IB30: 20976.07443 | IC30: 21395.59592 | ID30: 21823.50784 | IE30: 22259.97799 | IF30: 22705.17755 | IG30: 23159.2811 | IH30: 23622.46673 | II30: 24094.91606 | IJ30: 24576.81438 | IK30: 25068.35067 | IL30: 25569.71768 | IM30: 26081.11204 | IN30: 26602.73428 | IO30: 27134.78896 | IP30: 27677.48474 | IQ30: 28231.03444 | IR30: 28795.65512 | IS30: 29371.56823 | IT30: 29958.99959 | IU30: 30558.17958 | IV30: 31169.34317 | IW30: 31792.73004 | IX30: 32428.58464 | IY30: 33077.15633 | IZ30: 33738.69946 | JA30: 34413.47345 | JB30: 35101.74292 | JC30: 35803.77778 | JD30: =JD24-JD25-JD28 -> 36519.85333 | JE30: 37250.2504 | JF30: 37995.25541 | JG30: 38755.16051 | JH30: 39530.26372 | JI30: 40320.869 | JJ30: 41127.28638 | JK30: 41949.83211 | JL30: 42788.82875 | JM30: 43644.60532 | JN30: 44517.49743 | JO30: 45407.84738 | JP30: 46316.00433 | JQ30: 47242.32441 | JR30: 48187.1709 | JS30: 49150.91432 | JT30: 50133.9326 | JU30: 51136.61126 | JV30: 52159.34348 | JW30: 53202.53035 | JX30: 54266.58096 | JY30: 55351.91258 | JZ30: 56458.95083 | KA30: 57588.12985 | KB30: 58739.89244 | KC30: 59914.69029 | KD30: 61112.9841 | KE30: 62335.24378 | KF30: 63581.94865 | KG30: 64853.58763 | KH30: 66150.65938 | KI30: 67473.67257 | KJ30: 68823.14602 | KK30: 70199.60894 | KL30: 71603.60112 | KM30: 73035.67314 | KN30: 74496.3866 | KO30: 75986.31434 | KP30: 77506.04062 | KQ30: 79056.16143 | KR30: 80637.28466 | KS30: 82250.03036 | KT30: 83895.03096
B31: PV of Free Cash Flow - True Value | E31: =NPV($E$14,30:30) -> 1721.25796
A32: Valuation using Terminal Value without Stable Period Adjustment
B33: Explicit Cash Flow | E33: =NPV($E$14,G33:KT33) -> 399.1413519 | G33: =IF(G18,G30) -> 18.5 | H33: 24.05 | I33: 31.265 | J33: 40.6445 | K33: 52.83785 | L33: 68.689205 | M33: 89.2959665 | N33: 116.0847564 | O33: 150.9101834 | P33: 196.1832384 | Q33: FALSE | R33: FALSE | S33: FALSE | T33: FALSE | U33: FALSE | V33: FALSE | W33: FALSE | X33: FALSE | Y33: FALSE | Z33: FALSE | AA33: FALSE | AB33: FALSE | AC33: FALSE | AD33: FALSE | AE33: FALSE | AF33: FALSE | AG33: FALSE | AH33: FALSE | AI33: FALSE | AJ33: FALSE | AK33: FALSE | AL33: FALSE | AM33: FALSE | AN33: FALSE | AO33: FALSE | AP33: FALSE | AQ33: FALSE | AR33: FALSE | AS33: FALSE | AT33: FALSE | AU33: FALSE | AV33: FALSE | AW33: FALSE | AX33: FALSE | AY33: FALSE | AZ33: FALSE | BA33: FALSE | BB33: FALSE | BC33: FALSE | BD33: FALSE | BE33: FALSE | BF33: FALSE | BG33: FALSE | BH33: FALSE | BI33: FALSE | BJ33: FALSE | BK33: FALSE | BL33: FALSE | BM33: FALSE | BN33: FALSE | BO33: FALSE | BP33: FALSE | BQ33: FALSE | BR33: FALSE | BS33: =IF(BS18,BS30) -> FALSE | BT33: FALSE | BU33: FALSE | BV33: FALSE | BW33: FALSE | BX33: FALSE | BY33: FALSE | BZ33: FALSE | CA33: FALSE | CB33: FALSE | CC33: FALSE | CD33: FALSE | CE33: FALSE | CF33: FALSE | CG33: FALSE | CH33: FALSE | CI33: FALSE | CJ33: FALSE | CK33: FALSE | CL33: FALSE | CM33: FALSE | CN33: FALSE | CO33: FALSE | CP33: FALSE | CQ33: FALSE | CR33: FALSE | CS33: FALSE | CT33: FALSE | CU33: FALSE | CV33: FALSE | CW33: FALSE | CX33: FALSE | CY33: FALSE | CZ33: FALSE | DA33: FALSE | DB33: FALSE | DC33: FALSE | DD33: FALSE | DE33: FALSE | DF33: FALSE | DG33: FALSE | DH33: FALSE | DI33: FALSE | DJ33: FALSE | DK33: FALSE | DL33: FALSE | DM33: FALSE | DN33: FALSE | DO33: FALSE | DP33: FALSE | DQ33: FALSE | DR33: FALSE | DS33: FALSE | DT33: FALSE | DU33: FALSE | DV33: FALSE | DW33: FALSE | DX33: FALSE | DY33: FALSE | DZ33: FALSE | EA33: FALSE | EB33: FALSE | EC33: FALSE | ED33: FALSE | EE33: =IF(EE18,EE30) -> FALSE | EF33: FALSE | EG33: FALSE | EH33: FALSE | EI33: FALSE | EJ33: FALSE | EK33: FALSE | EL33: FALSE | EM33: FALSE | EN33: FALSE | EO33: FALSE | EP33: FALSE | EQ33: FALSE | ER33: FALSE | ES33: FALSE | ET33: FALSE | EU33: FALSE | EV33: FALSE | EW33: FALSE | EX33: FALSE | EY33: FALSE | EZ33: FALSE | FA33: FALSE | FB33: FALSE | FC33: FALSE | FD33: FALSE | FE33: FALSE | FF33: FALSE | FG33: FALSE | FH33: FALSE | FI33: FALSE | FJ33: FALSE | FK33: FALSE | FL33: FALSE | FM33: FALSE | FN33: FALSE | FO33: FALSE | FP33: FALSE | FQ33: FALSE | FR33: FALSE | FS33: FALSE | FT33: FALSE | FU33: FALSE | FV33: FALSE | FW33: FALSE | FX33: FALSE | FY33: FALSE | FZ33: FALSE | GA33: FALSE | GB33: FALSE | GC33: FALSE | GD33: FALSE | GE33: FALSE | GF33: FALSE | GG33: FALSE | GH33: FALSE | GI33: FALSE | GJ33: FALSE | GK33: FALSE | GL33: FALSE | GM33: FALSE | GN33: FALSE | GO33: FALSE | GP33: FALSE | GQ33: =IF(GQ18,GQ30) -> FALSE | GR33: FALSE | GS33: FALSE | GT33: FALSE | GU33: FALSE | GV33: FALSE | GW33: FALSE | GX33: FALSE | GY33: FALSE | GZ33: FALSE | HA33: FALSE | HB33: FALSE | HC33: FALSE | HD33: FALSE | HE33: FALSE | HF33: FALSE | HG33: FALSE | HH33: FALSE | HI33: FALSE | HJ33: FALSE | HK33: FALSE | HL33: FALSE | HM33: FALSE | HN33: FALSE | HO33: FALSE | HP33: FALSE | HQ33: FALSE | HR33: FALSE | HS33: FALSE | HT33: FALSE | HU33: FALSE | HV33: FALSE | HW33: FALSE | HX33: FALSE | HY33: FALSE | HZ33: FALSE | IA33: FALSE | IB33: FALSE | IC33: FALSE | ID33: FALSE | IE33: FALSE | IF33: FALSE | IG33: FALSE | IH33: FALSE | II33: FALSE | IJ33: FALSE | IK33: FALSE | IL33: FALSE | IM33: FALSE | IN33: FALSE | IO33: FALSE | IP33: FALSE | IQ33: FALSE | IR33: FALSE | IS33: FALSE | IT33: FALSE | IU33: FALSE | IV33: FALSE | IW33: FALSE | IX33: FALSE | IY33: FALSE | IZ33: FALSE | JA33: FALSE | JB33: FALSE | JC33: =IF(JC18,JC30) -> FALSE | JD33: FALSE | JE33: FALSE | JF33: FALSE | JG33: FALSE | JH33: FALSE | JI33: FALSE | JJ33: FALSE | JK33: FALSE | JL33: FALSE | JM33: FALSE | JN33: FALSE | JO33: FALSE | JP33: FALSE | JQ33: FALSE | JR33: FALSE | JS33: FALSE | JT33: FALSE | JU33: FALSE | JV33: FALSE | JW33: FALSE | JX33: FALSE | JY33: FALSE | JZ33: FALSE | KA33: FALSE | KB33: FALSE | KC33: FALSE | KD33: FALSE | KE33: FALSE | KF33: FALSE | KG33: FALSE | KH33: FALSE | KI33: FALSE | KJ33: FALSE | KK33: FALSE | KL33: FALSE | KM33: FALSE | KN33: FALSE | KO33: FALSE | KP33: FALSE | KQ33: FALSE | KR33: FALSE | KS33: FALSE | KT33: FALSE
B34: Terminal Cash Flow | E34: =NPV($E$14,G34:KT34) -> 964.3734211 | G34: =IF(G18,G19*G33*(1+$E$5)/($E$14-$E$5)) -> 0 | H34: 0 | I34: 0 | J34: 0 | K34: 0 | L34: 0 | M34: 0 | N34: 0 | O34: 0 | P34: 2501.33629 | Q34: FALSE | R34: FALSE | S34: FALSE | T34: FALSE | U34: FALSE | V34: FALSE | W34: FALSE | X34: FALSE | Y34: FALSE | Z34: FALSE | AA34: FALSE | AB34: FALSE | AC34: FALSE | AD34: FALSE | AE34: FALSE | AF34: FALSE | AG34: FALSE | AH34: FALSE | AI34: FALSE | AJ34: FALSE | AK34: FALSE | AL34: FALSE | AM34: FALSE | AN34: FALSE | AO34: FALSE | AP34: FALSE | AQ34: FALSE | AR34: FALSE | AS34: FALSE | AT34: FALSE | AU34: FALSE | AV34: FALSE | AW34: FALSE | AX34: FALSE | AY34: FALSE | AZ34: FALSE | BA34: FALSE | BB34: FALSE | BC34: FALSE | BD34: FALSE | BE34: FALSE | BF34: FALSE | BG34: FALSE | BH34: FALSE | BI34: FALSE | BJ34: FALSE | BK34: FALSE | BL34: FALSE | BM34: FALSE | BN34: FALSE | BO34: FALSE | BP34: FALSE | BQ34: FALSE | BR34: FALSE | BS34: =IF(BS18,BS19*BS33*(1+$E$5)/($E$14-$E$5)) -> FALSE | BT34: FALSE | BU34: FALSE | BV34: FALSE | BW34: FALSE | BX34: FALSE | BY34: FALSE | BZ34: FALSE | CA34: FALSE | CB34: FALSE | CC34: FALSE | CD34: FALSE | CE34: FALSE | CF34: FALSE | CG34: FALSE | CH34: FALSE | CI34: FALSE | CJ34: FALSE | CK34: FALSE | CL34: FALSE | CM34: FALSE | CN34: FALSE | CO34: FALSE | CP34: FALSE | CQ34: FALSE | CR34: FALSE | CS34: FALSE | CT34: FALSE | CU34: FALSE | CV34: FALSE | CW34: FALSE | CX34: FALSE | CY34: FALSE | CZ34: FALSE | DA34: FALSE | DB34: FALSE | DC34: FALSE | DD34: FALSE | DE34: FALSE | DF34: FALSE | DG34: FALSE | DH34: FALSE | DI34: FALSE | DJ34: FALSE | DK34: FALSE | DL34: FALSE | DM34: FALSE | DN34: FALSE | DO34: FALSE | DP34: FALSE | DQ34: FALSE | DR34: FALSE | DS34: FALSE | DT34: FALSE | DU34: FALSE | DV34: FALSE | DW34: FALSE | DX34: FALSE | DY34: FALSE | DZ34: FALSE | EA34: FALSE | EB34: FALSE | EC34: FALSE | ED34: FALSE | EE34: =IF(EE18,EE19*EE33*(1+$E$5)/($E$14-$E$5)) -> FALSE | EF34: FALSE | EG34: FALSE | EH34: FALSE | EI34: FALSE | EJ34: FALSE | EK34: FALSE | EL34: FALSE | EM34: FALSE | EN34: FALSE | EO34: FALSE | EP34: FALSE | EQ34: FALSE | ER34: FALSE | ES34: FALSE | ET34: FALSE | EU34: FALSE | EV34: FALSE | EW34: FALSE | EX34: FALSE | EY34: FALSE | EZ34: FALSE | FA34: FALSE | FB34: FALSE | FC34: FALSE | FD34: FALSE | FE34: FALSE | FF34: FALSE | FG34: FALSE | FH34: FALSE | FI34: FALSE | FJ34: FALSE | FK34: FALSE | FL34: FALSE | FM34: FALSE | FN34: FALSE | FO34: FALSE | FP34: FALSE | FQ34: FALSE | FR34: FALSE | FS34: FALSE | FT34: FALSE | FU34: FALSE | FV34: FALSE | FW34: FALSE | FX34: FALSE | FY34: FALSE | FZ34: FALSE | GA34: FALSE | GB34: FALSE | GC34: FALSE | GD34: FALSE | GE34: FALSE | GF34: FALSE | GG34: FALSE | GH34: FALSE | GI34: FALSE | GJ34: FALSE | GK34: FALSE | GL34: FALSE | GM34: FALSE | GN34: FALSE | GO34: FALSE | GP34: FALSE | GQ34: =IF(GQ18,GQ19*GQ33*(1+$E$5)/($E$14-$E$5)) -> FALSE | GR34: FALSE | GS34: FALSE | GT34: FALSE | GU34: FALSE | GV34: FALSE | GW34: FALSE | GX34: FALSE | GY34: FALSE | GZ34: FALSE | HA34: FALSE | HB34: FALSE | HC34: FALSE | HD34: FALSE | HE34: FALSE | HF34: FALSE | HG34: FALSE | HH34: FALSE | HI34: FALSE | HJ34: FALSE | HK34: FALSE | HL34: FALSE | HM34: FALSE | HN34: FALSE | HO34: FALSE | HP34: FALSE | HQ34: FALSE | HR34: FALSE | HS34: FALSE | HT34: FALSE | HU34: FALSE | HV34: FALSE | HW34: FALSE | HX34: FALSE | HY34: FALSE | HZ34: FALSE | IA34: FALSE | IB34: FALSE | IC34: FALSE | ID34: FALSE | IE34: FALSE | IF34: FALSE | IG34: FALSE | IH34: FALSE | II34: FALSE | IJ34: FALSE | IK34: FALSE | IL34: FALSE | IM34: FALSE | IN34: FALSE | IO34: FALSE | IP34: FALSE | IQ34: FALSE | IR34: FALSE | IS34: FALSE | IT34: FALSE | IU34: FALSE | IV34: FALSE | IW34: FALSE | IX34: FALSE | IY34: FALSE | IZ34: FALSE | JA34: FALSE | JB34: FALSE | JC34: =IF(JC18,JC19*JC33*(1+$E$5)/($E$14-$E$5)) -> FALSE | JD34: FALSE | JE34: FALSE | JF34: FALSE | JG34: FALSE | JH34: FALSE | JI34: FALSE | JJ34: FALSE | JK34: FALSE | JL34: FALSE | JM34: FALSE | JN34: FALSE | JO34: FALSE | JP34: FALSE | JQ34: FALSE | JR34: FALSE | JS34: FALSE | JT34: FALSE | JU34: FALSE | JV34: FALSE | JW34: FALSE | JX34: FALSE | JY34: FALSE | JZ34: FALSE | KA34: FALSE | KB34: FALSE | KC34: FALSE | KD34: FALSE | KE34: FALSE | KF34: FALSE | KG34: FALSE | KH34: FALSE | KI34: FALSE | KJ34: FALSE | KK34: FALSE | KL34: FALSE | KM34: FALSE | KN34: FALSE | KO34: FALSE | KP34: FALSE | KQ34: FALSE | KR34: FALSE | KS34: FALSE | KT34: FALSE
B35: Enterprise Value without Adjustment | E35: =SUM(E33:E34) -> 1363.514773
A36: Valuation using Terminal Value with Stable Period Adjustment
B37: WC to EBITDA | G37: =G27/(G24-G25) -> 1.25 | H37: 1.25 | I37: 1.25 | J37: 1.25 | K37: 1.25 | L37: 1.25 | M37: 1.25 | N37: 1.25 | O37: 1.25 | P37: 1.25 | Q37: 1.25 | R37: 1.25 | S37: 1.25 | T37: 1.25 | U37: 1.25 | V37: 1.25 | W37: 1.25 | X37: 1.25 | Y37: 1.25 | Z37: 1.25 | AA37: 1.25 | AB37: 1.25 | AC37: 1.25 | AD37: 1.25 | AE37: 1.25 | AF37: 1.25 | AG37: 1.25 | AH37: 1.25 | AI37: 1.25 | AJ37: 1.25 | AK37: 1.25 | AL37: 1.25 | AM37: 1.25 | AN37: 1.25 | AO37: 1.25 | AP37: 1.25 | AQ37: 1.25 | AR37: 1.25 | AS37: 1.25 | AT37: 1.25 | AU37: 1.25 | AV37: 1.25 | AW37: 1.25 | AX37: 1.25 | AY37: 1.25 | AZ37: 1.25 | BA37: 1.25 | BB37: 1.25 | BC37: 1.25 | BD37: 1.25 | BE37: 1.25 | BF37: 1.25 | BG37: 1.25 | BH37: 1.25 | BI37: 1.25 | BJ37: 1.25 | BK37: 1.25 | BL37: 1.25 | BM37: 1.25 | BN37: 1.25 | BO37: 1.25 | BP37: 1.25 | BQ37: 1.25 | BR37: 1.25 | BS37: =BS27/(BS24-BS25) -> 1.25 | BT37: 1.25 | BU37: 1.25 | BV37: 1.25 | BW37: 1.25 | BX37: 1.25 | BY37: 1.25 | BZ37: 1.25 | CA37: 1.25 | CB37: 1.25 | CC37: 1.25 | CD37: 1.25 | CE37: 1.25 | CF37: 1.25 | CG37: 1.25 | CH37: 1.25 | CI37: 1.25 | CJ37: 1.25 | CK37: 1.25 | CL37: 1.25 | CM37: 1.25 | CN37: 1.25 | CO37: 1.25 | CP37: 1.25 | CQ37: 1.25 | CR37: 1.25 | CS37: 1.25 | CT37: 1.25 | CU37: 1.25 | CV37: 1.25 | CW37: 1.25 | CX37: 1.25 | CY37: 1.25 | CZ37: 1.25 | DA37: 1.25 | DB37: 1.25 | DC37: 1.25 | DD37: 1.25 | DE37: 1.25 | DF37: 1.25 | DG37: 1.25 | DH37: 1.25 | DI37: 1.25 | DJ37: 1.25 | DK37: 1.25 | DL37: 1.25 | DM37: 1.25 | DN37: 1.25 | DO37: 1.25 | DP37: 1.25 | DQ37: 1.25 | DR37: 1.25 | DS37: 1.25 | DT37: 1.25 | DU37: 1.25 | DV37: 1.25 | DW37: 1.25 | DX37: 1.25 | DY37: 1.25 | DZ37: 1.25 | EA37: 1.25 | EB37: 1.25 | EC37: 1.25 | ED37: 1.25 | EE37: =EE27/(EE24-EE25) -> 1.25 | EF37: 1.25 | EG37: 1.25 | EH37: 1.25 | EI37: 1.25 | EJ37: 1.25 | EK37: 1.25 | EL37: 1.25 | EM37: 1.25 | EN37: 1.25 | EO37: 1.25 | EP37: 1.25 | EQ37: 1.25 | ER37: 1.25 | ES37: 1.25 | ET37: 1.25 | EU37: 1.25 | EV37: 1.25 | EW37: 1.25 | EX37: 1.25 | EY37: 1.25 | EZ37: 1.25 | FA37: 1.25 | FB37: 1.25 | FC37: 1.25 | FD37: 1.25 | FE37: 1.25 | FF37: 1.25 | FG37: 1.25 | FH37: 1.25 | FI37: 1.25 | FJ37: 1.25 | FK37: 1.25 | FL37: 1.25 | FM37: 1.25 | FN37: 1.25 | FO37: 1.25 | FP37: 1.25 | FQ37: 1.25 | FR37: 1.25 | FS37: 1.25 | FT37: 1.25 | FU37: 1.25 | FV37: 1.25 | FW37: 1.25 | FX37: 1.25 | FY37: 1.25 | FZ37: 1.25 | GA37: 1.25 | GB37: 1.25 | GC37: 1.25 | GD37: 1.25 | GE37: 1.25 | GF37: 1.25 | GG37: 1.25 | GH37: 1.25 | GI37: 1.25 | GJ37: 1.25 | GK37: 1.25 | GL37: 1.25 | GM37: 1.25 | GN37: 1.25 | GO37: 1.25 | GP37: 1.25 | GQ37: =GQ27/(GQ24-GQ25) -> 1.25 | GR37: 1.25 | GS37: 1.25 | GT37: 1.25 | GU37: 1.25 | GV37: 1.25 | GW37: 1.25 | GX37: 1.25 | GY37: 1.25 | GZ37: 1.25 | HA37: 1.25 | HB37: 1.25 | HC37: 1.25 | HD37: 1.25 | HE37: 1.25 | HF37: 1.25 | HG37: 1.25 | HH37: 1.25 | HI37: 1.25 | HJ37: 1.25 | HK37: 1.25 | HL37: 1.25 | HM37: 1.25 | HN37: 1.25 | HO37: 1.25 | HP37: 1.25 | HQ37: 1.25 | HR37: 1.25 | HS37: 1.25 | HT37: 1.25 | HU37: 1.25 | HV37: 1.25 | HW37: 1.25 | HX37: 1.25 | HY37: 1.25 | HZ37: 1.25 | IA37: 1.25 | IB37: 1.25 | IC37: 1.25 | ID37: 1.25 | IE37: 1.25 | IF37: 1.25 | IG37: 1.25 | IH37: 1.25 | II37: 1.25 | IJ37: 1.25 | IK37: 1.25 | IL37: 1.25 | IM37: 1.25 | IN37: 1.25 | IO37: 1.25 | IP37: 1.25 | IQ37: 1.25 | IR37: 1.25 | IS37: 1.25 | IT37: 1.25 | IU37: 1.25 | IV37: 1.25 | IW37: 1.25 | IX37: 1.25 | IY37: 1.25 | IZ37: 1.25 | JA37: 1.25 | JB37: 1.25 | JC37: =JC27/(JC24-JC25) -> 1.25 | JD37: 1.25 | JE37: 1.25 | JF37: 1.25 | JG37: 1.25 | JH37: 1.25 | JI37: 1.25 | JJ37: 1.25 | JK37: 1.25 | JL37: 1.25 | JM37: 1.25 | JN37: 1.25 | JO37: 1.25 | JP37: 1.25 | JQ37: 1.25 | JR37: 1.25 | JS37: 1.25 | JT37: 1.25 | JU37: 1.25 | JV37: 1.25 | JW37: 1.25 | JX37: 1.25 | JY37: 1.25 | JZ37: 1.25 | KA37: 1.25 | KB37: 1.25 | KC37: 1.25 | KD37: 1.25 | KE37: 1.25 | KF37: 1.25 | KG37: 1.25 | KH37: 1.25 | KI37: 1.25 | KJ37: 1.25 | KK37: 1.25 | KL37: 1.25 | KM37: 1.25 | KN37: 1.25 | KO37: 1.25 | KP37: 1.25 | KQ37: 1.25 | KR37: 1.25 | KS37: 1.25 | KT37: 1.25
B38: Terminal Growth | E38: =E5 -> 0.02 | G38: =$E$38 -> 0.02 | H38: =$E$38 -> 0.02 | I38: 0.02 | J38: 0.02 | K38: 0.02 | L38: 0.02 | M38: 0.02 | N38: 0.02 | O38: 0.02 | P38: 0.02 | Q38: 0.02 | R38: 0.02 | S38: 0.02 | T38: 0.02 | U38: 0.02 | V38: 0.02 | W38: 0.02 | X38: 0.02 | Y38: 0.02 | Z38: 0.02 | AA38: 0.02 | AB38: 0.02 | AC38: 0.02 | AD38: 0.02 | AE38: 0.02 | AF38: 0.02 | AG38: 0.02 | AH38: 0.02 | AI38: 0.02 | AJ38: 0.02 | AK38: 0.02 | AL38: 0.02 | AM38: 0.02 | AN38: 0.02 | AO38: 0.02 | AP38: 0.02 | AQ38: 0.02 | AR38: 0.02 | AS38: 0.02 | AT38: 0.02 | AU38: 0.02 | AV38: 0.02 | AW38: 0.02 | AX38: 0.02 | AY38: 0.02 | AZ38: 0.02 | BA38: 0.02 | BB38: 0.02 | BC38: 0.02 | BD38: 0.02 | BE38: 0.02 | BF38: 0.02 | BG38: 0.02 | BH38: 0.02 | BI38: 0.02 | BJ38: 0.02 | BK38: 0.02 | BL38: 0.02 | BM38: 0.02 | BN38: 0.02 | BO38: 0.02 | BP38: 0.02 | BQ38: 0.02 | BR38: 0.02 | BS38: 0.02 | BT38: =$E$38 -> 0.02 | BU38: 0.02 | BV38: 0.02 | BW38: 0.02 | BX38: 0.02 | BY38: 0.02 | BZ38: 0.02 | CA38: 0.02 | CB38: 0.02 | CC38: 0.02 | CD38: 0.02 | CE38: 0.02 | CF38: 0.02 | CG38: 0.02 | CH38: 0.02 | CI38: 0.02 | CJ38: 0.02 | CK38: 0.02 | CL38: 0.02 | CM38: 0.02 | CN38: 0.02 | CO38: 0.02 | CP38: 0.02 | CQ38: 0.02 | CR38: 0.02 | CS38: 0.02 | CT38: 0.02 | CU38: 0.02 | CV38: 0.02 | CW38: 0.02 | CX38: 0.02 | CY38: 0.02 | CZ38: 0.02 | DA38: 0.02 | DB38: 0.02 | DC38: 0.02 | DD38: 0.02 | DE38: 0.02 | DF38: 0.02 | DG38: 0.02 | DH38: 0.02 | DI38: 0.02 | DJ38: 0.02 | DK38: 0.02 | DL38: 0.02 | DM38: 0.02 | DN38: 0.02 | DO38: 0.02 | DP38: 0.02 | DQ38: 0.02 | DR38: 0.02 | DS38: 0.02 | DT38: 0.02 | DU38: 0.02 | DV38: 0.02 | DW38: 0.02 | DX38: 0.02 | DY38: 0.02 | DZ38: 0.02 | EA38: 0.02 | EB38: 0.02 | EC38: 0.02 | ED38: 0.02 | EE38: 0.02 | EF38: =$E$38 -> 0.02 | EG38: 0.02 | EH38: 0.02 | EI38: 0.02 | EJ38: 0.02 | EK38: 0.02 | EL38: 0.02 | EM38: 0.02 | EN38: 0.02 | EO38: 0.02 | EP38: 0.02 | EQ38: 0.02 | ER38: 0.02 | ES38: 0.02 | ET38: 0.02 | EU38: 0.02 | EV38: 0.02 | EW38: 0.02 | EX38: 0.02 | EY38: 0.02 | EZ38: 0.02 | FA38: 0.02 | FB38: 0.02 | FC38: 0.02 | FD38: 0.02 | FE38: 0.02 | FF38: 0.02 | FG38: 0.02 | FH38: 0.02 | FI38: 0.02 | FJ38: 0.02 | FK38: 0.02 | FL38: 0.02 | FM38: 0.02 | FN38: 0.02 | FO38: 0.02 | FP38: 0.02 | FQ38: 0.02 | FR38: 0.02 | FS38: 0.02 | FT38: 0.02 | FU38: 0.02 | FV38: 0.02 | FW38: 0.02 | FX38: 0.02 | FY38: 0.02 | FZ38: 0.02 | GA38: 0.02 | GB38: 0.02 | GC38: 0.02 | GD38: 0.02 | GE38: 0.02 | GF38: 0.02 | GG38: 0.02 | GH38: 0.02 | GI38: 0.02 | GJ38: 0.02 | GK38: 0.02 | GL38: 0.02 | GM38: 0.02 | GN38: 0.02 | GO38: 0.02 | GP38: 0.02 | GQ38: 0.02 | GR38: =$E$38 -> 0.02 | GS38: 0.02 | GT38: 0.02 | GU38: 0.02 | GV38: 0.02 | GW38: 0.02 | GX38: 0.02 | GY38: 0.02 | GZ38: 0.02 | HA38: 0.02 | HB38: 0.02 | HC38: 0.02 | HD38: 0.02 | HE38: 0.02 | HF38: 0.02 | HG38: 0.02 | HH38: 0.02 | HI38: 0.02 | HJ38: 0.02 | HK38: 0.02 | HL38: 0.02 | HM38: 0.02 | HN38: 0.02 | HO38: 0.02 | HP38: 0.02 | HQ38: 0.02 | HR38: 0.02 | HS38: 0.02 | HT38: 0.02 | HU38: 0.02 | HV38: 0.02 | HW38: 0.02 | HX38: 0.02 | HY38: 0.02 | HZ38: 0.02 | IA38: 0.02 | IB38: 0.02 | IC38: 0.02 | ID38: 0.02 | IE38: 0.02 | IF38: 0.02 | IG38: 0.02 | IH38: 0.02 | II38: 0.02 | IJ38: 0.02 | IK38: 0.02 | IL38: 0.02 | IM38: 0.02 | IN38: 0.02 | IO38: 0.02 | IP38: 0.02 | IQ38: 0.02 | IR38: 0.02 | IS38: 0.02 | IT38: 0.02 | IU38: 0.02 | IV38: 0.02 | IW38: 0.02 | IX38: 0.02 | IY38: 0.02 | IZ38: 0.02 | JA38: 0.02 | JB38: 0.02 | JC38: 0.02 | JD38: =$E$38 -> 0.02 | JE38: 0.02 | JF38: 0.02 | JG38: 0.02 | JH38: 0.02 | JI38: 0.02 | JJ38: 0.02 | JK38: 0.02 | JL38: 0.02 | JM38: 0.02 | JN38: 0.02 | JO38: 0.02 | JP38: 0.02 | JQ38: 0.02 | JR38: 0.02 | JS38: 0.02 | JT38: 0.02 | JU38: 0.02 | JV38: 0.02 | JW38: 0.02 | JX38: 0.02 | JY38: 0.02 | JZ38: 0.02 | KA38: 0.02 | KB38: 0.02 | KC38: 0.02 | KD38: 0.02 | KE38: 0.02 | KF38: 0.02 | KG38: 0.02 | KH38: 0.02 | KI38: 0.02 | KJ38: 0.02 | KK38: 0.02 | KL38: 0.02 | KM38: 0.02 | KN38: 0.02 | KO38: 0.02 | KP38: 0.02 | KQ38: 0.02 | KR38: 0.02 | KS38: 0.02 | KT38: 0.02
B39: Stable WC Change | G39: =G37*(G24-G25)*(G38/(1+G38)) -> 0.637254902 | H39: 0.8284313725 | I39: 1.076960784 | J39: 1.40004902 | K39: 1.820063725 | L39: 2.366082843 | M39: 3.075907696 | N39: 3.998680005 | O39: 5.198284006 | P39: =P37*(P24-P25)*(P38/(1+P38)) -> 6.757769208 | Q39: 6.892924592 | R39: 7.030783084 | S39: 7.171398746 | T39: 7.314826721 | U39: 7.461123255 | V39: 7.61034572 | W39: 7.762552635 | X39: 7.917803688 | Y39: 8.076159761 | Z39: 8.237682957 | AA39: 8.402436616 | AB39: 8.570485348 | AC39: 8.741895055 | AD39: 8.916732956 | AE39: 9.095067615 | AF39: 9.276968967 | AG39: 9.462508347 | AH39: 9.651758514 | AI39: 9.844793684 | AJ39: 10.04168956 | AK39: 10.24252335 | AL39: 10.44737382 | AM39: 10.65632129 | AN39: 10.86944772 | AO39: 11.08683667 | AP39: 11.30857341 | AQ39: 11.53474487 | AR39: 11.76543977 | AS39: 12.00074857 | AT39: 12.24076354 | AU39: 12.48557881 | AV39: 12.73529039 | AW39: 12.98999619 | AX39: 13.24979612 | AY39: 13.51479204 | AZ39: 13.78508788 | BA39: 14.06078964 | BB39: 14.34200543 | BC39: 14.62884554 | BD39: 14.92142245 | BE39: 15.2198509 | BF39: 15.52424792 | BG39: 15.83473287 | BH39: 16.15142753 | BI39: 16.47445608 | BJ39: 16.8039452 | BK39: 17.14002411 | BL39: 17.48282459 | BM39: 17.83248108 | BN39: 18.1891307 | BO39: 18.55291332 | BP39: 18.92397158 | BQ39: 19.30245102 | BR39: 19.68850004 | BS39: =BS37*(BS24-BS25)*(BS38/(1+BS38)) -> 20.08227004 | BT39: 20.48391544 | BU39: 20.89359375 | BV39: 21.31146562 | BW39: 21.73769493 | BX39: 22.17244883 | BY39: 22.61589781 | BZ39: 23.06821577 | CA39: 23.52958008 | CB39: 24.00017168 | CC39: 24.48017512 | CD39: 24.96977862 | CE39: 25.46917419 | CF39: 25.97855768 | CG39: 26.49812883 | CH39: 27.02809141 | CI39: 27.56865323 | CJ39: 28.1200263 | CK39: 28.68242682 | CL39: 29.25607536 | CM39: 29.84119687 | CN39: 30.4380208 | CO39: 31.04678122 | CP39: 31.66771685 | CQ39: 32.30107118 | CR39: 32.94709261 | CS39: 33.60603446 | CT39: 34.27815515 | CU39: 34.96371825 | CV39: 35.66299262 | CW39: 36.37625247 | CX39: 37.10377752 | CY39: 37.84585307 | CZ39: 38.60277013 | DA39: 39.37482553 | DB39: 40.16232204 | DC39: 40.96556848 | DD39: 41.78487985 | DE39: 42.62057745 | DF39: 43.472989 | DG39: 44.34244878 | DH39: 45.22929775 | DI39: 46.13388371 | DJ39: 47.05656138 | DK39: 47.99769261 | DL39: 48.95764646 | DM39: 49.93679939 | DN39: 50.93553538 | DO39: 51.95424609 | DP39: 52.99333101 | DQ39: 54.05319763 | DR39: 55.13426158 | DS39: 56.23694681 | DT39: 57.36168575 | DU39: 58.50891946 | DV39: 59.67909785 | DW39: 60.87267981 | DX39: 62.09013341 | DY39: 63.33193608 | DZ39: 64.5985748 | EA39: 65.89054629 | EB39: 67.20835722 | EC39: 68.55252436 | ED39: 69.92357485 | EE39: =EE37*(EE24-EE25)*(EE38/(1+EE38)) -> 71.32204635 | EF39: 72.74848727 | EG39: 74.20345702 | EH39: 75.68752616 | EI39: 77.20127668 | EJ39: 78.74530222 | EK39: 80.32020826 | EL39: 81.92661243 | EM39: 83.56514468 | EN39: 85.23644757 | EO39: 86.94117652 | EP39: 88.68000005 | EQ39: 90.45360005 | ER39: 92.26267205 | ES39: 94.10792549 | ET39: 95.990084 | EU39: 97.90988568 | EV39: 99.8680834 | EW39: 101.8654451 | EX39: 103.902754 | EY39: 105.980809 | EZ39: 108.1004252 | FA39: 110.2624337 | FB39: 112.4676824 | FC39: 114.7170361 | FD39: 117.0113768 | FE39: 119.3516043 | FF39: 121.7386364 | FG39: 124.1734091 | FH39: 126.6568773 | FI39: 129.1900149 | FJ39: 131.7738152 | FK39: 134.4092915 | FL39: 137.0974773 | FM39: 139.8394268 | FN39: 142.6362154 | FO39: 145.4889397 | FP39: 148.3987185 | FQ39: 151.3666928 | FR39: 154.3940267 | FS39: 157.4819072 | FT39: 160.6315454 | FU39: 163.8441763 | FV39: 167.1210598 | FW39: 170.463481 | FX39: 173.8727506 | FY39: 177.3502056 | FZ39: 180.8972097 | GA39: 184.5151539 | GB39: 188.205457 | GC39: 191.9695662 | GD39: 195.8089575 | GE39: 199.7251366 | GF39: 203.7196394 | GG39: 207.7940322 | GH39: 211.9499128 | GI39: 216.1889111 | GJ39: 220.5126893 | GK39: 224.9229431 | GL39: 229.4214019 | GM39: 234.00983 | GN39: 238.6900266 | GO39: 243.4638271 | GP39: 248.3331036 | GQ39: =GQ37*(GQ24-GQ25)*(GQ38/(1+GQ38)) -> 253.2997657 | GR39: 258.365761 | GS39: 263.5330762 | GT39: 268.8037378 | GU39: 274.1798125 | GV39: 279.6634088 | GW39: 285.2566769 | GX39: 290.9618105 | GY39: 296.7810467 | GZ39: 302.7166676 | HA39: 308.771001 | HB39: 314.946421 | HC39: 321.2453494 | HD39: 327.6702564 | HE39: 334.2236615 | HF39: 340.9081348 | HG39: 347.7262975 | HH39: 354.6808234 | HI39: 361.7744399 | HJ39: 369.0099287 | HK39: 376.3901272 | HL39: 383.9179298 | HM39: 391.5962884 | HN39: 399.4282142 | HO39: 407.4167784 | HP39: 415.565114 | HQ39: 423.8764163 | HR39: 432.3539446 | HS39: 441.0010235 | HT39: 449.821044 | HU39: 458.8174649 | HV39: 467.9938141 | HW39: 477.3536904 | HX39: 486.9007642 | HY39: 496.6387795 | HZ39: 506.5715551 | IA39: 516.7029862 | IB39: 527.0370459 | IC39: 537.5777869 | ID39: 548.3293426 | IE39: 559.2959295 | IF39: 570.481848 | IG39: 581.891485 | IH39: 593.5293147 | II39: 605.399901 | IJ39: 617.507899 | IK39: 629.858057 | IL39: 642.4552181 | IM39: 655.3043225 | IN39: 668.4104089 | IO39: 681.7786171 | IP39: 695.4141895 | IQ39: 709.3224733 | IR39: 723.5089227 | IS39: 737.9791012 | IT39: 752.7386832 | IU39: 767.7934569 | IV39: 783.149326 | IW39: 798.8123125 | IX39: 814.7885588 | IY39: 831.0843299 | IZ39: 847.7060165 | JA39: 864.6601369 | JB39: 881.9533396 | JC39: =JC37*(JC24-JC25)*(JC38/(1+JC38)) -> 899.5924064 | JD39: 917.5842545 | JE39: 935.9359396 | JF39: 954.6546584 | JG39: 973.7477516 | JH39: 993.2227066 | JI39: 1013.087161 | JJ39: 1033.348904 | JK39: 1054.015882 | JL39: 1075.0962 | JM39: 1096.598124 | JN39: 1118.530086 | JO39: 1140.900688 | JP39: 1163.718702 | JQ39: 1186.993076 | JR39: 1210.732937 | JS39: 1234.947596 | JT39: 1259.646548 | JU39: 1284.839479 | JV39: 1310.536268 | JW39: 1336.746994 | JX39: 1363.481934 | JY39: 1390.751572 | JZ39: 1418.566604 | KA39: 1446.937936 | KB39: 1475.876695 | KC39: 1505.394228 | KD39: 1535.502113 | KE39: 1566.212155 | KF39: 1597.536398 | KG39: 1629.487126 | KH39: 1662.076869 | KI39: 1695.318406 | KJ39: 1729.224774 | KK39: 1763.80927 | KL39: 1799.085455 | KM39: 1835.067164 | KN39: 1871.768508 | KO39: 1909.203878 | KP39: 1947.387955 | KQ39: 1986.335714 | KR39: 2026.062429 | KS39: 2066.583677 | KT39: 2107.915351
B40: Stable Cash Flow | E40: =E14 -> 0.1 | G40: =G24-G25-G39 -> 25.3627451 | H40: =H24-H25-H39 -> 32.97156863 | I40: 42.86303922 | J40: 55.72195098 | K40: 72.43853627 | L40: 94.17009716 | M40: 122.4211263 | N40: 159.1474642 | O40: 206.8917035 | P40: =P24-P25-P39 -> 268.9592145 | Q40: 274.3383988 | R40: 279.8251668 | S40: 285.4216701 | T40: 291.1301035 | U40: 296.9527056 | V40: 302.8917597 | W40: 308.9495949 | X40: 315.1285868 | Y40: 321.4311585 | Z40: 327.8597817 | AA40: 334.4169773 | AB40: 341.1053168 | AC40: 347.9274232 | AD40: 354.8859716 | AE40: 361.9836911 | AF40: 369.2233649 | AG40: 376.6078322 | AH40: 384.1399888 | AI40: 391.8227886 | AJ40: 399.6592444 | AK40: 407.6524293 | AL40: 415.8054779 | AM40: 424.1215874 | AN40: 432.6040192 | AO40: 441.2560996 | AP40: 450.0812215 | AQ40: 459.082846 | AR40: 468.2645029 | AS40: 477.629793 | AT40: 487.1823888 | AU40: 496.9260366 | AV40: 506.8645573 | AW40: 517.0018485 | AX40: 527.3418854 | AY40: 537.8887232 | AZ40: 548.6464976 | BA40: 559.6194276 | BB40: 570.8118161 | BC40: 582.2280524 | BD40: 593.8726135 | BE40: 605.7500658 | BF40: 617.8650671 | BG40: 630.2223684 | BH40: 642.8268158 | BI40: 655.6833521 | BJ40: 668.7970191 | BK40: 682.1729595 | BL40: 695.8164187 | BM40: 709.7327471 | BN40: 723.927402 | BO40: 738.4059501 | BP40: 753.1740691 | BQ40: 768.2375505 | BR40: 783.6023015 | BS40: =BS24-BS25-BS39 -> 799.2743475 | BT40: 815.2598344 | BU40: 831.5650311 | BV40: 848.1963318 | BW40: 865.1602584 | BX40: 882.4634636 | BY40: 900.1127328 | BZ40: 918.1149875 | CA40: 936.4772872 | CB40: 955.206833 | CC40: 974.3109696 | CD40: 993.797189 | CE40: 1013.673133 | CF40: 1033.946595 | CG40: 1054.625527 | CH40: 1075.718038 | CI40: 1097.232399 | CJ40: 1119.177047 | CK40: 1141.560588 | CL40: 1164.391799 | CM40: 1187.679635 | CN40: 1211.433228 | CO40: 1235.661893 | CP40: 1260.37513 | CQ40: 1285.582633 | CR40: 1311.294286 | CS40: 1337.520171 | CT40: 1364.270575 | CU40: 1391.555986 | CV40: 1419.387106 | CW40: 1447.774848 | CX40: 1476.730345 | CY40: 1506.264952 | CZ40: 1536.390251 | DA40: 1567.118056 | DB40: 1598.460417 | DC40: 1630.429626 | DD40: 1663.038218 | DE40: 1696.298982 | DF40: 1730.224962 | DG40: 1764.829461 | DH40: 1800.126051 | DI40: 1836.128572 | DJ40: 1872.851143 | DK40: 1910.308166 | DL40: 1948.514329 | DM40: 1987.484616 | DN40: 2027.234308 | DO40: 2067.778994 | DP40: 2109.134574 | DQ40: 2151.317266 | DR40: 2194.343611 | DS40: 2238.230483 | DT40: 2282.995093 | DU40: 2328.654995 | DV40: 2375.228095 | DW40: 2422.732656 | DX40: 2471.18731 | DY40: 2520.611056 | DZ40: 2571.023277 | EA40: 2622.443742 | EB40: 2674.892617 | EC40: 2728.39047 | ED40: 2782.958279 | EE40: =EE24-EE25-EE39 -> 2838.617445 | EF40: 2895.389794 | EG40: 2953.297589 | EH40: 3012.363541 | EI40: 3072.610812 | EJ40: 3134.063028 | EK40: 3196.744289 | EL40: 3260.679175 | EM40: 3325.892758 | EN40: 3392.410613 | EO40: 3460.258826 | EP40: 3529.464002 | EQ40: 3600.053282 | ER40: 3672.054348 | ES40: 3745.495435 | ET40: 3820.405343 | EU40: 3896.81345 | EV40: 3974.749719 | EW40: 4054.244714 | EX40: 4135.329608 | EY40: 4218.0362 | EZ40: 4302.396924 | FA40: 4388.444863 | FB40: 4476.21376 | FC40: 4565.738035 | FD40: 4657.052796 | FE40: 4750.193852 | FF40: 4845.197729 | FG40: 4942.101683 | FH40: 5040.943717 | FI40: 5141.762591 | FJ40: 5244.597843 | FK40: 5349.4898 | FL40: 5456.479596 | FM40: 5565.609188 | FN40: 5676.921372 | FO40: 5790.459799 | FP40: 5906.268995 | FQ40: 6024.394375 | FR40: 6144.882262 | FS40: 6267.779908 | FT40: 6393.135506 | FU40: 6520.998216 | FV40: 6651.41818 | FW40: 6784.446544 | FX40: 6920.135475 | FY40: 7058.538184 | FZ40: 7199.708948 | GA40: 7343.703127 | GB40: 7490.577189 | GC40: 7640.388733 | GD40: 7793.196508 | GE40: 7949.060438 | GF40: 8108.041647 | GG40: 8270.20248 | GH40: 8435.606529 | GI40: 8604.31866 | GJ40: 8776.405033 | GK40: 8951.933134 | GL40: 9130.971796 | GM40: 9313.591232 | GN40: 9499.863057 | GO40: 9689.860318 | GP40: 9883.657524 | GQ40: =GQ24-GQ25-GQ39 -> 10081.33067 | GR40: 10282.95729 | GS40: 10488.61643 | GT40: 10698.38876 | GU40: 10912.35654 | GV40: 11130.60367 | GW40: 11353.21574 | GX40: 11580.28006 | GY40: 11811.88566 | GZ40: 12048.12337 | HA40: 12289.08584 | HB40: 12534.86756 | HC40: 12785.56491 | HD40: 13041.2762 | HE40: 13302.10173 | HF40: 13568.14376 | HG40: 13839.50664 | HH40: 14116.29677 | HI40: 14398.62271 | HJ40: 14686.59516 | HK40: 14980.32706 | HL40: 15279.93361 | HM40: 15585.53228 | HN40: 15897.24292 | HO40: 16215.18778 | HP40: 16539.49154 | HQ40: 16870.28137 | HR40: 17207.687 | HS40: 17551.84074 | HT40: 17902.87755 | HU40: 18260.9351 | HV40: 18626.1538 | HW40: 18998.67688 | HX40: 19378.65042 | HY40: 19766.22343 | HZ40: 20161.54789 | IA40: 20564.77885 | IB40: 20976.07443 | IC40: 21395.59592 | ID40: 21823.50784 | IE40: 22259.97799 | IF40: 22705.17755 | IG40: 23159.2811 | IH40: 23622.46673 | II40: 24094.91606 | IJ40: 24576.81438 | IK40: 25068.35067 | IL40: 25569.71768 | IM40: 26081.11204 | IN40: 26602.73428 | IO40: 27134.78896 | IP40: 27677.48474 | IQ40: 28231.03444 | IR40: 28795.65512 | IS40: 29371.56823 | IT40: 29958.99959 | IU40: 30558.17958 | IV40: 31169.34317 | IW40: 31792.73004 | IX40: 32428.58464 | IY40: 33077.15633 | IZ40: 33738.69946 | JA40: 34413.47345 | JB40: 35101.74292 | JC40: =JC24-JC25-JC39 -> 35803.77778 | JD40: 36519.85333 | JE40: 37250.2504 | JF40: 37995.25541 | JG40: 38755.16051 | JH40: 39530.26372 | JI40: 40320.869 | JJ40: 41127.28638 | JK40: 41949.83211 | JL40: 42788.82875 | JM40: 43644.60532 | JN40: 44517.49743 | JO40: 45407.84738 | JP40: 46316.00433 | JQ40: 47242.32441 | JR40: 48187.1709 | JS40: 49150.91432 | JT40: 50133.9326 | JU40: 51136.61126 | JV40: 52159.34348 | JW40: 53202.53035 | JX40: 54266.58096 | JY40: 55351.91258 | JZ40: 56458.95083 | KA40: 57588.12985 | KB40: 58739.89244 | KC40: 59914.69029 | KD40: 61112.9841 | KE40: 62335.24378 | KF40: 63581.94865 | KG40: 64853.58763 | KH40: 66150.65938 | KI40: 67473.67257 | KJ40: 68823.14602 | KK40: 70199.60894 | KL40: 71603.60112 | KM40: 73035.67314 | KN40: 74496.3866 | KO40: 75986.31434 | KP40: 77506.04062 | KQ40: 79056.16143 | KR40: 80637.28466 | KS40: 82250.03036 | KT40: 83895.03096
B41: Terminal Cash Flow | E41: =NPV(E40,G41:KT41) -> 1322.116609 | G41: =G40*(1+$E$38)/($E$40-$E$38)*G19 -> 0 | H41: 0 | I41: 0 | J41: 0 | K41: 0 | L41: 0 | M41: 0 | N41: 0 | O41: 0 | P41: =P40*(1+$E$38)/($E$40-$E$38)*P19 -> 3429.229985 | Q41: 0 | R41: 0 | S41: 0 | T41: 0 | U41: 0 | V41: 0 | W41: 0 | X41: 0 | Y41: 0 | Z41: 0 | AA41: 0 | AB41: 0 | AC41: 0 | AD41: 0 | AE41: 0 | AF41: 0 | AG41: 0 | AH41: 0 | AI41: 0 | AJ41: 0 | AK41: 0 | AL41: 0 | AM41: 0 | AN41: 0 | AO41: 0 | AP41: 0 | AQ41: 0 | AR41: 0 | AS41: 0 | AT41: 0 | AU41: 0 | AV41: 0 | AW41: 0 | AX41: 0 | AY41: 0 | AZ41: 0 | BA41: 0 | BB41: 0 | BC41: 0 | BD41: 0 | BE41: 0 | BF41: 0 | BG41: 0 | BH41: 0 | BI41: 0 | BJ41: 0 | BK41: 0 | BL41: 0 | BM41: 0 | BN41: 0 | BO41: 0 | BP41: 0 | BQ41: 0 | BR41: 0 | BS41: =BS40*(1+$E$38)/($E$40-$E$38)*BS19 -> 0 | BT41: 0 | BU41: 0 | BV41: 0 | BW41: 0 | BX41: 0 | BY41: 0 | BZ41: 0 | CA41: 0 | CB41: 0 | CC41: 0 | CD41: 0 | CE41: 0 | CF41: 0 | CG41: 0 | CH41: 0 | CI41: 0 | CJ41: 0 | CK41: 0 | CL41: 0 | CM41: 0 | CN41: 0 | CO41: 0 | CP41: 0 | CQ41: 0 | CR41: 0 | CS41: 0 | CT41: 0 | CU41: 0 | CV41: 0 | CW41: 0 | CX41: 0 | CY41: 0 | CZ41: 0 | DA41: 0 | DB41: 0 | DC41: 0 | DD41: 0 | DE41: 0 | DF41: 0 | DG41: 0 | DH41: 0 | DI41: 0 | DJ41: 0 | DK41: 0 | DL41: 0 | DM41: 0 | DN41: 0 | DO41: 0 | DP41: 0 | DQ41: 0 | DR41: 0 | DS41: 0 | DT41: 0 | DU41: 0 | DV41: 0 | DW41: 0 | DX41: 0 | DY41: 0 | DZ41: 0 | EA41: 0 | EB41: 0 | EC41: 0 | ED41: 0 | EE41: =EE40*(1+$E$38)/($E$40-$E$38)*EE19 -> 0 | EF41: 0 | EG41: 0 | EH41: 0 | EI41: 0 | EJ41: 0 | EK41: 0 | EL41: 0 | EM41: 0 | EN41: 0 | EO41: 0 | EP41: 0 | EQ41: 0 | ER41: 0 | ES41: 0 | ET41: 0 | EU41: 0 | EV41: 0 | EW41: 0 | EX41: 0 | EY41: 0 | EZ41: 0 | FA41: 0 | FB41: 0 | FC41: 0 | FD41: 0 | FE41: 0 | FF41: 0 | FG41: 0 | FH41: 0 | FI41: 0 | FJ41: 0 | FK41: 0 | FL41: 0 | FM41: 0 | FN41: 0 | FO41: 0 | FP41: 0 | FQ41: 0 | FR41: 0 | FS41: 0 | FT41: 0 | FU41: 0 | FV41: 0 | FW41: 0 | FX41: 0 | FY41: 0 | FZ41: 0 | GA41: 0 | GB41: 0 | GC41: 0 | GD41: 0 | GE41: 0 | GF41: 0 | GG41: 0 | GH41: 0 | GI41: 0 | GJ41: 0 | GK41: 0 | GL41: 0 | GM41: 0 | GN41: 0 | GO41: 0 | GP41: 0 | GQ41: =GQ40*(1+$E$38)/($E$40-$E$38)*GQ19 -> 0 | GR41: 0 | GS41: 0 | GT41: 0 | GU41: 0 | GV41: 0 | GW41: 0 | GX41: 0 | GY41: 0 | GZ41: 0 | HA41: 0 | HB41: 0 | HC41: 0 | HD41: 0 | HE41: 0 | HF41: 0 | HG41: 0 | HH41: 0 | HI41: 0 | HJ41: 0 | HK41: 0 | HL41: 0 | HM41: 0 | HN41: 0 | HO41: 0 | HP41: 0 | HQ41: 0 | HR41: 0 | HS41: 0 | HT41: 0 | HU41: 0 | HV41: 0 | HW41: 0 | HX41: 0 | HY41: 0 | HZ41: 0 | IA41: 0 | IB41: 0 | IC41: 0 | ID41: 0 | IE41: 0 | IF41: 0 | IG41: 0 | IH41: 0 | II41: 0 | IJ41: 0 | IK41: 0 | IL41: 0 | IM41: 0 | IN41: 0 | IO41: 0 | IP41: 0 | IQ41: 0 | IR41: 0 | IS41: 0 | IT41: 0 | IU41: 0 | IV41: 0 | IW41: 0 | IX41: 0 | IY41: 0 | IZ41: 0 | JA41: 0 | JB41: 0 | JC41: =JC40*(1+$E$38)/($E$40-$E$38)*JC19 -> 0 | JD41: 0 | JE41: 0 | JF41: 0 | JG41: 0 | JH41: 0 | JI41: 0 | JJ41: 0 | JK41: 0 | JL41: 0 | JM41: 0 | JN41: 0 | JO41: 0 | JP41: 0 | JQ41: 0 | JR41: 0 | JS41: 0 | JT41: 0 | JU41: 0 | JV41: 0 | JW41: 0 | JX41: 0 | JY41: 0 | JZ41: 0 | KA41: 0 | KB41: 0 | KC41: 0 | KD41: 0 | KE41: 0 | KF41: 0 | KG41: 0 | KH41: 0 | KI41: 0 | KJ41: 0 | KK41: 0 | KL41: 0 | KM41: 0 | KN41: 0 | KO41: 0 | KP41: 0 | KQ41: 0 | KR41: 0 | KS41: 0 | KT41: 0
B42: Explcit Cash Flow | E42: =E33 -> 399.1413519
B43: Total EV with Adjustment | E43: =SUM(E41:E42) -> 1721.25796

Sheet Sheet2

Sheet Sheet3
